Workbook

Sheet RAW
A1: ORDERNUMBER | B1: QUANTITYORDERED | C1: SALES | D1: ORDERDATE | E1: PRODUCTLINE | F1: PRODUCTCODE | G1: CUSTOMERNAME | H1: COUNTRY
A2: 10100 | B2: 30 | C2: 5151 | D2: 2003-01-06 | E2: Vintage Cars | F2: S18_1749 | G2: Online Diecast Creations Co. | H2: USA
A3: 10101 | B3: 50 | C3: 3390 | D3: 2003-01-06 | E3: Vintage Cars | F3: S18_2248 | G3: Online Diecast Creations Co. | H3: USA
A4: 10102 | B4: 22 | C4: 1903.22 | D4: 2003-01-06 | E4: Vintage Cars | F4: S18_4409 | G4: Online Diecast Creations Co. | H4: USA
A5: 10103 | B5: 49 | C5: 1689.03 | D5: 2003-01-06 | E5: Vintage Cars | F5: S24_3969 | G5: Online Diecast Creations Co. | H5: USA
A6: 10104 | B6: 25 | C6: 3782 | D6: 2003-01-09 | E6: Vintage Cars | F6: S18_2325 | G6: Blauer See Auto, Co. | H6: Germany
A7: 10105 | B7: 26 | C7: 3773.38 | D7: 2003-01-09 | E7: Vintage Cars | F7: S18_2795 | G7: Blauer See Auto, Co. | H7: Germany
A8: 10106 | B8: 45 | C8: 1404 | D8: 2003-01-09 | E8: Vintage Cars | F8: S24_1937 | G8: Blauer See Auto, Co. | H8: Germany
A9: 10107 | B9: 46 | C9: 2472.96 | D9: 2003-01-09 | E9: Vintage Cars | F9: S24_2022 | G9: Blauer See Auto, Co. | H9: Germany
A10: 10108 | B10: 39 | C10: 4808.31 | D10: 2003-01-10 | E10: Vintage Cars | F10: S18_1342 | G10: Vitachrome Inc. | H10: USA
A11: 10109 | B11: 41 | C11: 4708.44 | D11: 2004-01-15 | E11: Motorcycles | F11: S10_1678 | G11: Auto Canal Petit | H11: France
A12: 10110 | B12: 37 | C12: 3965.66 | D12: 2004-02-20 | E12: Motorcycles | F12: S10_1678 | G12: Australian Collectors, Co. | H12: Australia
A13: 10111 | B13: 23 | C13: 2333.12 | D13: 2004-04-05 | E13: Motorcycles | F13: S10_1678 | G13: Vitachrome Inc. | H13: USA
A14: 10112 | B14: 28 | C14: 3188.64 | D14: 2004-05-18 | E14: Motorcycles | F14: S10_1678 | G14: Tekni Collectables Inc. | H14: USA
A15: 10113 | B15: 34 | C15: 3676.76 | D15: 2004-06-28 | E15: Motorcycles | F15: S10_1678 | G15: Gift Depot Inc. | H15: USA
A16: 10114 | B16: 45 | C16: 4177.35 | D16: 2004-07-23 | E16: Motorcycles | F16: S10_1678 | G16: La Rochelle Gifts | H16: France
A17: 10115 | B17: 36 | C17: 4099.68 | D17: 2004-08-27 | E17: Motorcycles | F17: S10_1678 | G17: Marta's Replicas Co. | H17: USA
A18: 10116 | B18: 23 | C18: 2597.39 | D18: 2004-09-30 | E18: Motorcycles | F18: S10_1678 | G18: Toys of Finland, Co. | H18: Finland
A19: 10117 | B19: 41 | C19: 4394.38 | D19: 2004-10-15 | E19: Motorcycles | F19: S10_1678 | G19: Baane Mini Imports | H19: Norway
A20: 10118 | B20: 46 | C20: 4358.04 | D20: 2004-11-02 | E20: Motorcycles | F20: S10_1678 | G20: Diecast Classics Inc. | H20: USA
A21: 10119 | B21: 42 | C21: 4396.14 | D21: 2004-11-15 | E21: Motorcycles | F21: S10_1678 | G21: Land of Toys Inc. | H21: USA
A22: 10120 | B22: 41 | C22: 7737.93 | D22: 2004-11-24 | E22: Motorcycles | F22: S10_1678 | G22: Salzburg Collectables | H22: Austria
A23: 10121 | B23: 20 | C23: 1451 | D23: 2004-12-17 | E23: Motorcycles | F23: S10_1678 | G23: Souveniers And Things Co. | H23: Australia
A24: 10122 | B24: 21 | C24: 733.11 | D24: 2005-02-03 | E24: Motorcycles | F24: S10_1678 | G24: La Rochelle Gifts | H24: France
A25: 10123 | B25: 42 | C25: 3207.12 | D25: 2005-03-03 | E25: Motorcycles | F25: S10_1678 | G25: FunGiftIdeas.com | H25: USA
A26: 10124 | B26: 24 | C26: 2434.56 | D26: 2005-04-08 | E26: Motorcycles | F26: S10_1678 | G26: UK Collectables, Ltd. | H26: UK
A27: 10125 | B27: 66 | C27: 7516.08 | D27: 2005-05-13 | E27: Motorcycles | F27: S10_1678 | G27: Euro Shopping Channel | H27: Spain
A28: 10126 | B28: 41 | C28: 2055.74 | D28: 2003-01-10 | E28: Vintage Cars | F28: S18_1367 | G28: Vitachrome Inc. | H28: USA
A29: 10127 | B29: 26 | C29: 5404.62 | D29: 2003-01-29 | E29: Classic Cars | F29: S10_1949 | G29: Baane Mini Imports | H29: Norway
A30: 10128 | B30: 42 | C30: 5398.26 | D30: 2003-01-29 | E30: Classic Cars | F30: S10_4962 | G30: Baane Mini Imports | H30: Norway
A31: 10129 | B31: 27 | C31: 3394.98 | D31: 2003-01-29 | E31: Trucks and Buses | F31: S12_1666 | G31: Baane Mini Imports | H31: Norway
A32: 10130 | B32: 35 | C32: 3920 | D32: 2003-01-29 | E32: Trucks and Buses | F32: S18_1097 | G32: Baane Mini Imports | H32: Norway
A33: 10131 | B33: 22 | C33: 1189.98 | D33: 2003-01-29 | E33: Trucks and Buses | F33: S18_2432 | G33: Baane Mini Imports | H33: Norway
A34: 10132 | B34: 27 | C34: 2242.89 | D34: 2003-01-29 | E34: Vintage Cars | F34: S18_2949 | G34: Baane Mini Imports | H34: Norway
A35: 10133 | B35: 35 | C35: 2011.1 | D35: 2003-01-29 | E35: Vintage Cars | F35: S18_2957 | G35: Baane Mini Imports | H35: Norway
A36: 10134 | B36: 25 | C36: 2539.5 | D36: 2003-01-29 | E36: Vintage Cars | F36: S18_3136 | G36: Baane Mini Imports | H36: Norway
A37: 10135 | B37: 46 | C37: 4791.82 | D37: 2003-01-29 | E37: Vintage Cars | F37: S18_3320 | G37: Baane Mini Imports | H37: Norway
A38: 10136 | B38: 35 | C38: 6075.3 | D38: 2004-01-29 | E38: Classic Cars | F38: S10_1949 | G38: West Coast Collectables Co. | H38: USA
A39: 10137 | B39: 29 | C39: 6463.23 | D39: 2004-03-10 | E39: Classic Cars | F39: S10_1949 | G39: Cambridge Collectables Co. | H39: USA
A40: 10138 | B40: 34 | C40: 6120.34 | D40: 2004-05-04 | E40: Classic Cars | F40: S10_1949 | G40: Super Scale Inc. | H40: USA
A41: 10139 | B41: 32 | C41: 7680.64 | D41: 2004-06-15 | E41: Classic Cars | F41: S10_1949 | G41: Tokyo Collectables, Ltd | H41: Japan
A42: 10140 | B42: 21 | C42: 4905.39 | D42: 2004-07-19 | E42: Classic Cars | F42: S10_1949 | G42: Souveniers And Things Co. | H42: Australia
A43: 10141 | B43: 34 | C43: 8014.82 | D43: 2004-08-17 | E43: Classic Cars | F43: S10_1949 | G43: Amica Models & Co. | H43: Italy
A44: 10142 | B44: 37 | C44: 7136.19 | D44: 2004-09-08 | E44: Classic Cars | F44: S10_1949 | G44: Scandinavian Gift Ideas | H44: Sweden
A45: 10143 | B45: 47 | C45: 10172.7 | D45: 2004-10-11 | E45: Classic Cars | F45: S10_1949 | G45: Auto Assoc. & Cie. | H45: France
A46: 10144 | B46: 48 | C46: 11623.7 | D46: 2004-10-21 | E46: Classic Cars | F46: S10_1949 | G46: Mini Gifts Distributors Ltd. | H46: USA
A47: 10145 | B47: 40 | C47: 6000.4 | D47: 2004-11-04 | E47: Classic Cars | F47: S10_1949 | G47: Online Diecast Creations Co. | H47: USA
A48: 10146 | B48: 26 | C48: 3003 | D48: 2004-11-18 | E48: Classic Cars | F48: S10_1949 | G48: Mini Wheels Co. | H48: USA
A49: 10147 | B49: 30 | C49: 3944.7 | D49: 2004-11-29 | E49: Classic Cars | F49: S10_1949 | G49: Australian Collectors, Co. | H49: Australia
A50: 10148 | B50: 32 | C50: 5691.84 | D50: 2004-12-10 | E50: Classic Cars | F50: S10_1949 | G50: Mini Gifts Distributors Ltd. | H50: USA
A51: 10149 | B51: 41 | C51: 4514.92 | D51: 2005-01-20 | E51: Classic Cars | F51: S10_1949 | G51: Collectables For Less Inc. | H51: USA
A52: 10150 | B52: 36 | C52: 8254.8 | D52: 2005-02-17 | E52: Classic Cars | F52: S10_1949 | G52: Corporate Gift Ideas Co. | H52: USA
A53: 10151 | B53: 24 | C53: 2416.56 | D53: 2005-03-09 | E53: Classic Cars | F53: S10_1949 | G53: Anna's Decorations, Ltd | H53: Australia
A54: 10152 | B54: 23 | C54: 4140.23 | D54: 2005-05-01 | E54: Classic Cars | F54: S10_1949 | G54: Quebec Home Shopping Network | H54: Canada
A55: 10153 | B55: 50 | C55: 12001 | D55: 2005-05-31 | E55: Classic Cars | F55: S10_1949 | G55: Euro Shopping Channel | H55: Spain
A56: 10154 | B56: 36 | C56: 4228.2 | D56: 2003-01-29 | E56: Trucks and Buses | F56: S18_4600 | G56: Baane Mini Imports | H56: Norway
A57: 10155 | B57: 41 | C57: 1938.89 | D57: 2003-01-29 | E57: Vintage Cars | F57: S18_4668 | G57: Baane Mini Imports | H57: Norway
A58: 10156 | B58: 36 | C58: 3680.28 | D58: 2003-01-29 | E58: Trucks and Buses | F58: S24_2300 | G58: Baane Mini Imports | H58: Norway
A59: 10157 | B59: 25 | C59: 2873 | D59: 2003-01-29 | E59: Vintage Cars | F59: S24_4258 | G59: Baane Mini Imports | H59: Norway
A60: 10158 | B60: 31 | C60: 3224.31 | D60: 2003-01-29 | E60: Trucks and Buses | F60: S32_1268 | G60: Baane Mini Imports | H60: Norway
A61: 10159 | B61: 45 | C61: 3403.35 | D61: 2003-01-29 | E61: Trucks and Buses | F61: S32_3522 | G61: Baane Mini Imports | H61: Norway
A62: 10160 | B62: 42 | C62: 4460.82 | D62: 2003-01-29 | E62: Classic Cars | F62: S700_2824 | G62: Baane Mini Imports | H62: Norway
A63: 10161 | B63: 34 | C63: 5958.5 | D63: 2003-01-31 | E63: Classic Cars | F63: S12_3148 | G63: Euro Shopping Channel | H63: Spain
A64: 10162 | B64: 41 | C64: 4615.78 | D64: 2003-01-31 | E64: Trucks and Buses | F64: S12_4473 | G64: Euro Shopping Channel | H64: Spain
A65: 10163 | B65: 23 | C65: 3009.09 | D65: 2004-01-12 | E65: Motorcycles | F65: S10_2016 | G65: Osaka Souveniers Co. | H65: Japan
A66: 10164 | B66: 47 | C66: 5422.39 | D66: 2004-02-20 | E66: Motorcycles | F66: S10_2016 | G66: Australian Collectors, Co. | H66: Australia
A67: 10165 | B67: 22 | C67: 2852.08 | D67: 2004-04-03 | E67: Motorcycles | F67: S10_2016 | G67: Motor Mint Distributors Inc. | H67: USA
A68: 10166 | B68: 44 | C68: 5756.52 | D68: 2004-05-18 | E68: Motorcycles | F68: S10_2016 | G68: Tekni Collectables Inc. | H68: USA
A69: 10167 | B69: 40 | C69: 4472 | D69: 2004-06-28 | E69: Motorcycles | F69: S10_2016 | G69: Gift Depot Inc. | H69: USA
A70: 10168 | B70: 22 | C70: 2904.44 | D70: 2004-07-23 | E70: Motorcycles | F70: S10_2016 | G70: La Rochelle Gifts | H70: France
A71: 10169 | B71: 47 | C71: 6484.59 | D71: 2004-08-27 | E71: Motorcycles | F71: S10_2016 | G71: Marta's Replicas Co. | H71: USA
A72: 10170 | B72: 39 | C72: 3757.26 | D72: 2004-09-27 | E72: Motorcycles | F72: S10_2016 | G72: Atelier graphique | H72: France
A73: 10171 | B73: 34 | C73: 4043.96 | D73: 2004-10-15 | E73: Motorcycles | F73: S10_2016 | G73: Mini Classics | H73: USA
A74: 10172 | B74: 45 | C74: 5566.5 | D74: 2004-11-02 | E74: Motorcycles | F74: S10_2016 | G74: Diecast Classics Inc. | H74: USA
A75: 10173 | B75: 20 | C75: 3176 | D75: 2004-11-15 | E75: Motorcycles | F75: S10_2016 | G75: Land of Toys Inc. | H75: USA
A76: 10174 | B76: 40 | C76: 2756.8 | D76: 2004-11-23 | E76: Motorcycles | F76: S10_2016 | G76: Tokyo Collectables, Ltd | H76: Japan
A77: 10175 | B77: 26 | C77: 1329.9 | D77: 2004-12-17 | E77: Motorcycles | F77: S10_2016 | G77: Souveniers And Things Co. | H77: Australia
A78: 10176 | B78: 39 | C78: 5288.01 | D78: 2005-02-02 | E78: Motorcycles | F78: S10_2016 | G78: Australian Gift Network, Co | H78: Australia
A79: 10177 | B79: 50 | C79: 2225.5 | D79: 2005-03-03 | E79: Motorcycles | F79: S10_2016 | G79: FunGiftIdeas.com | H79: USA
A80: 10178 | B80: 45 | C80: 5833.8 | D80: 2005-04-07 | E80: Motorcycles | F80: S10_2016 | G80: Auto Canal Petit | H80: France
A81: 10179 | B81: 45 | C81: 5887.35 | D81: 2005-05-13 | E81: Motorcycles | F81: S10_2016 | G81: Euro Shopping Channel | H81: Spain
A82: 10180 | B82: 24 | C82: 3457.92 | D82: 2003-01-31 | E82: Classic Cars | F82: S18_2238 | G82: Euro Shopping Channel | H82: Spain
A83: 10181 | B83: 29 | C83: 3772.61 | D83: 2003-01-31 | E83: Trucks and Buses | F83: S18_2319 | G83: Euro Shopping Channel | H83: Spain
A84: 10182 | B84: 23 | C84: 4556.99 | D84: 2003-01-31 | E84: Classic Cars | F84: S18_3232 | G84: Euro Shopping Channel | H84: Spain
A85: 10183 | B85: 38 | C85: 5348.5 | D85: 2003-01-31 | E85: Classic Cars | F85: S18_4027 | G85: Euro Shopping Channel | H85: Spain
A86: 10184 | B86: 35 | C86: 1942.15 | D86: 2003-01-31 | E86: Classic Cars | F86: S24_1444 | G86: Euro Shopping Channel | H86: Spain
A87: 10185 | B87: 44 | C87: 1742.4 | D87: 2003-01-31 | E87: Classic Cars | F87: S24_2840 | G87: Euro Shopping Channel | H87: Spain
A88: 10186 | B88: 26 | C88: 2921.62 | D88: 2003-01-31 | E88: Classic Cars | F88: S24_4048 | G88: Euro Shopping Channel | H88: Spain
A89: 10187 | B89: 35 | C89: 1666.7 | D89: 2003-01-31 | E89: Trucks and Buses | F89: S32_2509 | G89: Euro Shopping Channel | H89: Spain
A90: 10188 | B90: 49 | C90: 3227.63 | D90: 2003-01-31 | E90: Trains | F90: S32_3207 | G90: Euro Shopping Channel | H90: Spain
A91: 10189 | B91: 34 | C91: 6123.4 | D91: 2004-01-12 | E91: Motorcycles | F91: S10_4698 | G91: Osaka Souveniers Co. | H91: Japan
A92: 10190 | B92: 49 | C92: 9774.03 | D92: 2004-02-20 | E92: Motorcycles | F92: S10_4698 | G92: Australian Collectors, Co. | H92: Australia
A93: 10191 | B93: 39 | C93: 7023.9 | D93: 2004-04-05 | E93: Motorcycles | F93: S10_4698 | G93: Vitachrome Inc. | H93: USA
A94: 10192 | B94: 43 | C94: 7078.23 | D94: 2004-05-18 | E94: Motorcycles | F94: S10_4698 | G94: Tekni Collectables Inc. | H94: USA
A95: 10193 | B95: 41 | C95: 8336.94 | D95: 2004-06-28 | E95: Motorcycles | F95: S10_4698 | G95: Gift Depot Inc. | H95: USA
A96: 10194 | B96: 36 | C96: 6901.92 | D96: 2004-07-23 | E96: Motorcycles | F96: S10_4698 | G96: La Rochelle Gifts | H96: France
A97: 10195 | B97: 27 | C97: 5438.07 | D97: 2004-08-27 | E97: Motorcycles | F97: S10_4698 | G97: Marta's Replicas Co. | H97: USA
A98: 10196 | B98: 29 | C98: 6683.34 | D98: 2004-09-30 | E98: Motorcycles | F98: S10_4698 | G98: Toys of Finland, Co. | H98: Finland
A99: 10197 | B99: 20 | C99: 4570.4 | D99: 2004-10-15 | E99: Motorcycles | F99: S10_4698 | G99: Mini Classics | H99: USA
A100: 10198 | B100: 37 | C100: 7667.14 | D100: 2004-11-02 | E100: Motorcycles | F100: S10_4698 | G100: Diecast Classics Inc. | H100: USA
A101: 10199 | B101: 26 | C101: 5868.2 | D101: 2004-11-15 | E101: Motorcycles | F101: S10_4698 | G101: Land of Toys Inc. | H101: USA
A102: 10200 | B102: 39 | C102: 2990.13 | D102: 2004-11-23 | E102: Motorcycles | F102: S10_4698 | G102: Tokyo Collectables, Ltd | H102: Japan
A103: 10201 | B103: 22 | C103: 3664.1 | D103: 2005-01-05 | E103: Motorcycles | F103: S10_4698 | G103: Technics Stores Inc. | H103: USA
A104: 10202 | B104: 22 | C104: 3834.38 | D104: 2005-02-02 | E104: Motorcycles | F104: S10_4698 | G104: Australian Gift Network, Co | H104: Australia
A105: 10203 | B105: 21 | C105: 1822.17 | D105: 2005-03-03 | E105: Motorcycles | F105: S10_4698 | G105: FunGiftIdeas.com | H105: USA
A106: 10204 | B106: 66 | C106: 11886.6 | D106: 2005-04-08 | E106: Motorcycles | F106: S10_4698 | G106: UK Collectables, Ltd. | H106: UK
A107: 10205 | B107: 56 | C107: 9218.16 | D107: 2005-05-13 | E107: Motorcycles | F107: S10_4698 | G107: Euro Shopping Channel | H107: Spain
A108: 10206 | B108: 33 | C108: 3705.24 | D108: 2003-01-31 | E108: Trucks and Buses | F108: S50_1392 | G108: Euro Shopping Channel | H108: Spain
A109: 10207 | B109: 32 | C109: 1705.92 | D109: 2003-01-31 | E109: Trains | F109: S50_1514 | G109: Euro Shopping Channel | H109: Spain
A110: 10208 | B110: 50 | C110: 7208 | D110: 2003-02-11 | E110: Classic Cars | F110: S10_4757 | G110: Danish Wholesale Imports | H110: Denmark
A111: 10209 | B111: 41 | C111: 8690.36 | D111: 2003-02-11 | E111: Classic Cars | F111: S12_1108 | G111: Danish Wholesale Imports | H111: Denmark
A112: 10210 | B112: 29 | C112: 4566.05 | D112: 2003-02-11 | E112: Classic Cars | F112: S12_3891 | G112: Danish Wholesale Imports | H112: Denmark
A113: 10211 | B113: 22 | C113: 3065.04 | D113: 2003-02-11 | E113: Vintage Cars | F113: S18_3140 | G113: Danish Wholesale Imports | H113: Denmark
A114: 10212 | B114: 38 | C114: 4330.1 | D114: 2003-02-11 | E114: Trains | F114: S18_3259 | G114: Danish Wholesale Imports | H114: Denmark
A115: 10213 | B115: 41 | C115: 3382.5 | D115: 2003-02-11 | E115: Vintage Cars | F115: S18_4522 | G115: Danish Wholesale Imports | H115: Denmark
A116: 10214 | B116: 43 | C116: 6341.21 | D116: 2003-02-11 | E116: Ships | F116: S24_2011 | G116: Danish Wholesale Imports | H116: Denmark
A117: 10215 | B117: 39 | C117: 5197.92 | D117: 2004-01-09 | E117: Classic Cars | F117: S10_4757 | G117: Men 'R' US Retailers, Ltd. | H117: USA
A118: 10216 | B118: 49 | C118: 5997.6 | D118: 2004-02-19 | E118: Classic Cars | F118: S10_4757 | G118: Collectable Mini Designs Co. | H118: USA
A119: 10217 | B119: 20 | C119: 2910.4 | D119: 2004-05-07 | E119: Classic Cars | F119: S10_4757 | G119: Land of Toys Inc. | H119: USA
A120: 10218 | B120: 27 | C120: 3378.24 | D120: 2004-06-17 | E120: Classic Cars | F120: S10_4757 | G120: Quebec Home Shopping Network | H120: Canada
A121: 10219 | B121: 30 | C121: 3508.8 | D121: 2004-07-21 | E121: Classic Cars | F121: S10_4757 | G121: Petit Auto | H121: Belgium
A122: 10220 | B122: 25 | C122: 2992 | D122: 2004-08-20 | E122: Classic Cars | F122: S10_4757 | G122: Royal Canadian Collectables, Ltd. | H122: Canada
A123: 10221 | B123: 24 | C123: 3427.2 | D123: 2004-09-10 | E123: Classic Cars | F123: S10_4757 | G123: Gifts4AllAges.com | H123: USA
A124: 10222 | B124: 22 | C124: 2692.8 | D124: 2004-10-14 | E124: Classic Cars | F124: S10_4757 | G124: Classic Gift Ideas, Inc | H124: USA
A125: 10223 | B125: 33 | C125: 4128.96 | D125: 2004-11-01 | E125: Classic Cars | F125: S10_4757 | G125: giftsbymail.co.uk | H125: UK
A126: 10224 | B126: 47 | C126: 3051.71 | D126: 2004-11-05 | E126: Classic Cars | F126: S10_4757 | G126: Baane Mini Imports | H126: Norway
A127: 10225 | B127: 25 | C127: 1201.25 | D127: 2004-11-21 | E127: Classic Cars | F127: S10_4757 | G127: Classic Legends Inc. | H127: USA
A128: 10226 | B128: 26 | C128: 1962.22 | D128: 2004-12-02 | E128: Classic Cars | F128: S10_4757 | G128: Euro Shopping Channel | H128: Spain
A129: 10227 | B129: 48 | C129: 2624.64 | D129: 2004-12-15 | E129: Classic Cars | F129: S10_4757 | G129: Reims Collectables | H129: France
A130: 10228 | B130: 39 | C130: 4046.25 | D130: 2005-01-31 | E130: Classic Cars | F130: S10_4757 | G130: Oulu Toy Supplies, Inc. | H130: Finland
A131: 10229 | B131: 34 | C131: 4846.7 | D131: 2005-02-23 | E131: Classic Cars | F131: S10_4757 | G131: Corporate Gift Ideas Co. | H131: USA
A132: 10230 | B132: 32 | C132: 3370.56 | D132: 2005-03-17 | E132: Classic Cars | F132: S10_4757 | G132: Lyon Souveniers | H132: France
A133: 10231 | B133: 64 | C133: 9661.44 | D133: 2005-04-01 | E133: Classic Cars | F133: S10_4757 | G133: The Sharp Gifts Warehouse | H133: USA
A134: 10232 | B134: 19 | C134: 2764.88 | D134: 2005-05-06 | E134: Classic Cars | F134: S10_4757 | G134: Gifts4AllAges.com | H134: USA
A135: 10233 | B135: 44 | C135: 3193.52 | D135: 2003-02-11 | E135: Vintage Cars | F135: S24_3151 | G135: Danish Wholesale Imports | H135: Denmark
A136: 10234 | B136: 50 | C136: 3983.5 | D136: 2003-02-11 | E136: Vintage Cars | F136: S24_3816 | G136: Danish Wholesale Imports | H136: Denmark
A137: 10235 | B137: 41 | C137: 2897.47 | D137: 2003-02-11 | E137: Ships | F137: S700_1138 | G137: Danish Wholesale Imports | H137: Denmark
A138: 10236 | B138: 29 | C138: 2034.35 | D138: 2003-02-11 | E138: Ships | F138: S700_1938 | G138: Danish Wholesale Imports | H138: Denmark
A139: 10237 | B139: 31 | C139: 2038.87 | D139: 2003-02-11 | E139: Ships | F139: S700_2610 | G139: Danish Wholesale Imports | H139: Denmark
A140: 10238 | B140: 39 | C140: 3164.46 | D140: 2003-02-11 | E140: Ships | F140: S700_3505 | G140: Danish Wholesale Imports | H140: Denmark
A141: 10239 | B141: 22 | C141: 2556.18 | D141: 2003-02-11 | E141: Ships | F141: S700_3962 | G141: Danish Wholesale Imports | H141: Denmark
A142: 10240 | B142: 25 | C142: 1419.5 | D142: 2003-02-11 | E142: Ships | F142: S72_3212 | G142: Danish Wholesale Imports | H142: Denmark
A143: 10241 | B143: 36 | C143: 5279.4 | D143: 2003-02-17 | E143: Planes | F143: S18_1662 | G143: Rovelli Gifts | H143: Italy
A144: 10242 | B144: 34 | C144: 3073.26 | D144: 2003-02-17 | E144: Planes | F144: S18_2581 | G144: Rovelli Gifts | H144: Italy
A145: 10243 | B145: 48 | C145: 7020.48 | D145: 2004-02-04 | E145: Classic Cars | F145: S10_4962 | G145: Handji Gifts& Co | H145: Singapore
A146: 10244 | B146: 50 | C146: 6426.5 | D146: 2004-03-11 | E146: Classic Cars | F146: S10_4962 | G146: Mini Gifts Distributors Ltd. | H146: USA
A147: 10245 | B147: 28 | C147: 4591.72 | D147: 2004-05-04 | E147: Classic Cars | F147: S10_4962 | G147: Super Scale Inc. | H147: USA
A148: 10246 | B148: 26 | C148: 4033.38 | D148: 2004-06-15 | E148: Classic Cars | F148: S10_4962 | G148: Handji Gifts& Co | H148: Singapore
A149: 10247 | B149: 32 | C149: 4302.08 | D149: 2004-07-19 | E149: Classic Cars | F149: S10_4962 | G149: Souveniers And Things Co. | H149: Australia
A150: 10248 | B150: 44 | C150: 7020.64 | D150: 2004-08-19 | E150: Classic Cars | F150: S10_4962 | G150: Diecast Classics Inc. | H150: USA
A151: 10249 | B151: 30 | C151: 3855.9 | D151: 2004-09-08 | E151: Classic Cars | F151: S10_4962 | G151: Scandinavian Gift Ideas | H151: Sweden
A152: 10250 | B152: 38 | C152: 6680.78 | D152: 2004-10-13 | E152: Classic Cars | F152: S10_4962 | G152: Marta's Replicas Co. | H152: USA
A153: 10251 | B153: 40 | C153: 6678 | D153: 2004-10-22 | E153: Classic Cars | F153: S10_4962 | G153: Canadian Gift Exchange Network | H153: Canada
A154: 10252 | B154: 46 | C154: 2851.54 | D154: 2004-11-04 | E154: Classic Cars | F154: S10_4962 | G154: Online Diecast Creations Co. | H154: USA
A155: 10253 | B155: 26 | C155: 3188.12 | D155: 2004-11-19 | E155: Classic Cars | F155: S10_4962 | G155: Volvo Model Replicas, Co | H155: Sweden
A156: 10254 | B156: 27 | C156: 4428 | D156: 2004-11-29 | E156: Classic Cars | F156: S10_4962 | G156: Australian Collectors, Co. | H156: Australia
A157: 10255 | B157: 43 | C157: 5780.92 | D157: 2004-12-10 | E157: Classic Cars | F157: S10_4962 | G157: Mini Gifts Distributors Ltd. | H157: USA
A158: 10256 | B158: 35 | C158: 2297.05 | D158: 2005-01-20 | E158: Classic Cars | F158: S10_4962 | G158: Anna's Decorations, Ltd | H158: Australia
A159: 10257 | B159: 37 | C159: 6231.54 | D159: 2005-02-17 | E159: Classic Cars | F159: S10_4962 | G159: Corporate Gift Ideas Co. | H159: USA
A160: 10258 | B160: 37 | C160: 1735.3 | D160: 2005-03-09 | E160: Classic Cars | F160: S10_4962 | G160: Anna's Decorations, Ltd | H160: Australia
A161: 10259 | B161: 27 | C161: 4427.73 | D161: 2005-05-01 | E161: Classic Cars | F161: S10_4962 | G161: Quebec Home Shopping Network | H161: Canada
A162: 10260 | B162: 38 | C162: 5894.94 | D162: 2005-05-31 | E162: Classic Cars | F162: S10_4962 | G162: La Rochelle Gifts | H162: France
A163: 10261 | B163: 41 | C163: 3421.04 | D163: 2003-02-17 | E163: Ships | F163: S18_3029 | G163: Rovelli Gifts | H163: Italy
A164: 10262 | B164: 41 | C164: 4774.86 | D164: 2003-02-17 | E164: Vintage Cars | F164: S18_3856 | G164: Rovelli Gifts | H164: Italy
A165: 10263 | B165: 28 | C165: 2481.64 | D165: 2003-02-17 | E165: Planes | F165: S24_1785 | G165: Rovelli Gifts | H165: Italy
A166: 10264 | B166: 49 | C166: 3659.32 | D166: 2003-02-17 | E166: Planes | F166: S24_2841 | G166: Rovelli Gifts | H166: Italy
A167: 10265 | B167: 31 | C167: 1630.6 | D167: 2003-02-17 | E167: Vintage Cars | F167: S24_3420 | G167: Rovelli Gifts | H167: Italy
A168: 10266 | B168: 50 | C168: 3241.5 | D168: 2003-02-17 | E168: Planes | F168: S24_3949 | G168: Rovelli Gifts | H168: Italy
A169: 10267 | B169: 26 | C169: 1657.76 | D169: 2003-02-17 | E169: Planes | F169: S24_4278 | G169: Rovelli Gifts | H169: Italy
A170: 10268 | B170: 33 | C170: 2406.36 | D170: 2003-02-17 | E170: Vintage Cars | F170: S32_4289 | G170: Rovelli Gifts | H170: Italy
A171: 10269 | B171: 39 | C171: 1565.85 | D171: 2003-02-17 | E171: Vintage Cars | F171: S50_1341 | G171: Rovelli Gifts | H171: Italy
A172: 10270 | B172: 41 | C172: 7498.9 | D172: 2004-01-15 | E172: Classic Cars | F172: S12_1099 | G172: Auto Canal Petit | H172: France
A173: 10271 | B173: 27 | C173: 4517.91 | D173: 2004-02-22 | E173: Classic Cars | F173: S12_1099 | G173: Vida Sport, Ltd | H173: Switzerland
A174: 10272 | B174: 28 | C174: 5774.72 | D174: 2004-04-09 | E174: Classic Cars | F174: S12_1099 | G174: Danish Wholesale Imports | H174: Denmark
A175: 10273 | B175: 24 | C175: 3922.56 | D175: 2004-06-01 | E175: Classic Cars | F175: S12_1099 | G175: UK Collectables, Ltd. | H175: UK
A176: 10274 | B176: 44 | C176: 9160.36 | D176: 2004-07-06 | E176: Classic Cars | F176: S12_1099 | G176: L'ordine Souveniers | H176: Italy
A177: 10275 | B177: 50 | C177: 9631 | D177: 2004-08-02 | E177: Classic Cars | F177: S12_1099 | G177: Online Mini Collectables | H177: USA
A178: 10276 | B178: 21 | C178: 3432.24 | D178: 2004-08-30 | E178: Classic Cars | F178: S12_1099 | G178: Vida Sport, Ltd | H178: Switzerland
A179: 10277 | B179: 31 | C179: 3312.97 | D179: 2003-02-17 | E179: Planes | F179: S700_1691 | G179: Rovelli Gifts | H179: Italy
A180: 10278 | B180: 33 | C180: 6934.62 | D180: 2004-10-16 | E180: Classic Cars | F180: S12_1099 | G180: Toms Spezialitten, Ltd | H180: Germany
A181: 10279 | B181: 31 | C181: 6876.11 | D181: 2004-11-03 | E181: Classic Cars | F181: S12_1099 | G181: Volvo Model Replicas, Co | H181: Sweden
A182: 10280 | B182: 41 | C182: 2930.27 | D182: 2004-11-15 | E182: Classic Cars | F182: S12_1099 | G182: Land of Toys Inc. | H182: USA
A183: 10281 | B183: 45 | C183: 3584.25 | D183: 2004-11-24 | E183: Classic Cars | F183: S12_1099 | G183: Salzburg Collectables | H183: Austria
A184: 10282 | B184: 33 | C184: 2817.87 | D184: 2005-01-06 | E184: Classic Cars | F184: S12_1099 | G184: Suominen Souveniers | H184: Finland
A185: 10283 | B185: 45 | C185: 3420 | D185: 2005-02-03 | E185: Classic Cars | F185: S12_1099 | G185: La Rochelle Gifts | H185: France
A186: 10284 | B186: 26 | C186: 2575.04 | D186: 2005-03-03 | E186: Classic Cars | F186: S12_1099 | G186: Scandinavian Gift Ideas | H186: Sweden
A187: 10285 | B187: 12 | C187: 1961.28 | D187: 2005-05-17 | E187: Classic Cars | F187: S12_1099 | G187: Salzburg Collectables | H187: Austria
A188: 10286 | B188: 30 | C188: 3177.3 | D188: 2003-02-17 | E188: Ships | F188: S700_2047 | G188: Rovelli Gifts | H188: Italy
A189: 10287 | B189: 34 | C189: 3763.46 | D189: 2003-02-17 | E189: Planes | F189: S700_2466 | G189: Rovelli Gifts | H189: Italy
A190: 10288 | B190: 32 | C190: 3986.56 | D190: 2003-02-17 | E190: Planes | F190: S700_2834 | G190: Rovelli Gifts | H190: Italy
A191: 10289 | B191: 44 | C191: 3273.6 | D191: 2003-02-17 | E191: Planes | F191: S700_3167 | G191: Rovelli Gifts | H191: Italy
A192: 10290 | B192: 48 | C192: 2949.12 | D192: 2003-02-17 | E192: Planes | F192: S700_4002 | G192: Rovelli Gifts | H192: Italy
A193: 10291 | B193: 48 | C193: 2526.72 | D193: 2003-02-17 | E193: Planes | F193: S72_1253 | G193: Rovelli Gifts | H193: Italy
A194: 10292 | B194: 30 | C194: 2871 | D194: 2003-02-24 | E194: Motorcycles | F194: S10_1678 | G194: Land of Toys Inc. | H194: USA
A195: 10293 | B195: 39 | C195: 3896.49 | D195: 2003-02-24 | E195: Motorcycles | F195: S10_2016 | G195: Land of Toys Inc. | H195: USA
A196: 10294 | B196: 27 | C196: 6065.55 | D196: 2003-02-24 | E196: Motorcycles | F196: S10_4698 | G196: Land of Toys Inc. | H196: USA
A197: 10295 | B197: 46 | C197: 8602.92 | D197: 2004-01-02 | E197: Classic Cars | F197: S12_1108 | G197: Saveley & Henriot, Co. | H197: France
A198: 10296 | B198: 32 | C198: 7181.44 | D198: 2004-02-12 | E198: Classic Cars | F198: S12_1108 | G198: Clover Collections, Co. | H198: Ireland
A199: 10297 | B199: 42 | C199: 8378.58 | D199: 2004-03-19 | E199: Classic Cars | F199: S12_1108 | G199: CAF Imports | H199: Spain
A200: 10298 | B200: 44 | C200: 10606.2 | D200: 2004-05-05 | E200: Classic Cars | F200: S12_1108 | G200: Suominen Souveniers | H200: Finland
... 2624 more rows

Sheet BaseData
A1: CUSTOMERNAME | B1: PRODUCTCODE | C1: PRODUCTLINE | D1: CUSTOMERNAME | E1: COUNTRY | F1: YEARS
A2: =_xlfn.UNIQUE(RAW!G2:G99999) -> Online Diecast Creations Co. | B2: =_xlfn._xlws.FILTER(_xlfn.UNIQUE(RAW!F2:F99999),_xlfn.UNIQUE(RAW!F2:F99999)<>0) -> S18_1749 | C2: =_xlfn._xlws.FILTER(_xlfn.UNIQUE(RAW!E2:E99999),_xlfn.UNIQUE(RAW!E2:E99999)<>0) -> Vintage Cars | D2: =_xlfn._xlws.FILTER(_xlfn.UNIQUE(RAW!G2:G99999),_xlfn.UNIQUE(RAW!G2:G99999)<>0) -> Online Diecast Creations Co. | E2: =_xlfn._xlws.FILTER(_xlfn.UNIQUE(RAW!H2:H99999),_xlfn.UNIQUE(RAW!H2:H99999)<>0) -> USA | F2: =_xlfn._xlws.FILTER(_xlfn.UNIQUE(YEAR(RAW!D$2:D$99999)),_xlfn.UNIQUE(YEAR(RAW!D$2:D$99999))<>1900) -> 2003
A3: Blauer See Auto, Co. | B3: S18_2248 | C3: Motorcycles | D3: Blauer See Auto, Co. | E3: Germany | F3: 2004
A4: Vitachrome Inc. | B4: S18_4409 | C4: Classic Cars | D4: Vitachrome Inc. | E4: France | F4: 2005
A5: Auto Canal Petit | B5: S24_3969 | C5: Trucks and Buses | D5: Auto Canal Petit | E5: Australia
A6: Australian Collectors, Co. | B6: S18_2325 | C6: Trains | D6: Australian Collectors, Co. | E6: Finland
A7: Tekni Collectables Inc. | B7: S18_2795 | C7: Ships | D7: Tekni Collectables Inc. | E7: Norway
A8: Gift Depot Inc. | B8: S24_1937 | C8: Planes | D8: Gift Depot Inc. | E8: Austria
A9: La Rochelle Gifts | B9: S24_2022 | D9: La Rochelle Gifts | E9: UK
A10: Marta's Replicas Co. | B10: S18_1342 | D10: Marta's Replicas Co. | E10: Spain
A11: Toys of Finland, Co. | B11: S10_1678 | D11: Toys of Finland, Co. | E11: Japan
A12: Baane Mini Imports | B12: S18_1367 | D12: Baane Mini Imports | E12: Italy
A13: Diecast Classics Inc. | B13: S10_1949 | D13: Diecast Classics Inc. | E13: Sweden
A14: Land of Toys Inc. | B14: S10_4962 | D14: Land of Toys Inc. | E14: Canada
A15: Salzburg Collectables | B15: S12_1666 | D15: Salzburg Collectables | E15: Denmark
A16: Souveniers And Things Co. | B16: S18_1097 | D16: Souveniers And Things Co. | E16: Belgium
A17: FunGiftIdeas.com | B17: S18_2432 | D17: FunGiftIdeas.com | E17: Singapore
A18: UK Collectables, Ltd. | B18: S18_2949 | D18: UK Collectables, Ltd. | E18: Switzerland
A19: Euro Shopping Channel | B19: S18_2957 | D19: Euro Shopping Channel | E19: Ireland
A20: West Coast Collectables Co. | B20: S18_3136 | D20: West Coast Collectables Co. | E20: Philippines
A21: Cambridge Collectables Co. | B21: S18_3320 | D21: Cambridge Collectables Co.
A22: Super Scale Inc. | B22: S18_4600 | D22: Super Scale Inc.
A23: Tokyo Collectables, Ltd | B23: S18_4668 | D23: Tokyo Collectables, Ltd
A24: Amica Models & Co. | B24: S24_2300 | D24: Amica Models & Co.
A25: Scandinavian Gift Ideas | B25: S24_4258 | D25: Scandinavian Gift Ideas
A26: Auto Assoc. & Cie. | B26: S32_1268 | D26: Auto Assoc. & Cie.
A27: Mini Gifts Distributors Ltd. | B27: S32_3522 | D27: Mini Gifts Distributors Ltd.
A28: Mini Wheels Co. | B28: S700_2824 | D28: Mini Wheels Co.
A29: Collectables For Less Inc. | B29: S12_3148 | D29: Collectables For Less Inc.
A30: Corporate Gift Ideas Co. | B30: S12_4473 | D30: Corporate Gift Ideas Co.
A31: Anna's Decorations, Ltd | B31: S10_2016 | D31: Anna's Decorations, Ltd
A32: Quebec Home Shopping Network | B32: S18_2238 | D32: Quebec Home Shopping Network
A33: Osaka Souveniers Co. | B33: S18_2319 | D33: Osaka Souveniers Co.
A34: Motor Mint Distributors Inc. | B34: S18_3232 | D34: Motor Mint Distributors Inc.
A35: Atelier graphique | B35: S18_4027 | D35: Atelier graphique
A36: Mini Classics | B36: S24_1444 | D36: Mini Classics
A37: Australian Gift Network, Co | B37: S24_2840 | D37: Australian Gift Network, Co
A38: Technics Stores Inc. | B38: S24_4048 | D38: Technics Stores Inc.
A39: Danish Wholesale Imports | B39: S32_2509 | D39: Danish Wholesale Imports
A40: Men 'R' US Retailers, Ltd. | B40: S32_3207 | D40: Men 'R' US Retailers, Ltd.
A41: Collectable Mini Designs Co. | B41: S10_4698 | D41: Collectable Mini Designs Co.
A42: Petit Auto | B42: S50_1392 | D42: Petit Auto
A43: Royal Canadian Collectables, Ltd. | B43: S50_1514 | D43: Royal Canadian Collectables, Ltd.
A44: Gifts4AllAges.com | B44: S10_4757 | D44: Gifts4AllAges.com
A45: Classic Gift Ideas, Inc | B45: S12_1108 | D45: Classic Gift Ideas, Inc
A46: giftsbymail.co.uk | B46: S12_3891 | D46: giftsbymail.co.uk
A47: Classic Legends Inc. | B47: S18_3140 | D47: Classic Legends Inc.
A48: Reims Collectables | B48: S18_3259 | D48: Reims Collectables
A49: Oulu Toy Supplies, Inc. | B49: S18_4522 | D49: Oulu Toy Supplies, Inc.
A50: Lyon Souveniers | B50: S24_2011 | D50: Lyon Souveniers
A51: The Sharp Gifts Warehouse | B51: S24_3151 | D51: The Sharp Gifts Warehouse
A52: Rovelli Gifts | B52: S24_3816 | D52: Rovelli Gifts
A53: Handji Gifts& Co | B53: S700_1138 | D53: Handji Gifts& Co
A54: Canadian Gift Exchange Network | B54: S700_1938 | D54: Canadian Gift Exchange Network
A55: Volvo Model Replicas, Co | B55: S700_2610 | D55: Volvo Model Replicas, Co
A56: Vida Sport, Ltd | B56: S700_3505 | D56: Vida Sport, Ltd
A57: L'ordine Souveniers | B57: S700_3962 | D57: L'ordine Souveniers
A58: Online Mini Collectables | B58: S72_3212 | D58: Online Mini Collectables
A59: Toms Spezialitten, Ltd | B59: S18_1662 | D59: Toms Spezialitten, Ltd
A60: Suominen Souveniers | B60: S18_2581 | D60: Suominen Souveniers
A61: Saveley & Henriot, Co. | B61: S18_3029 | D61: Saveley & Henriot, Co.
A62: Clover Collections, Co. | B62: S18_3856 | D62: Clover Collections, Co.
A63: CAF Imports | B63: S24_1785 | D63: CAF Imports
A64: AV Stores, Co. | B64: S24_2841 | D64: AV Stores, Co.
A65: Heintze Collectables | B65: S24_3420 | D65: Heintze Collectables
A66: La Corne D'abondance, Co. | B66: S24_3949 | D66: La Corne D'abondance, Co.
A67: Corrida Auto Replicas, Ltd | B67: S24_4278 | D67: Corrida Auto Replicas, Ltd
A68: Cruz & Sons Co. | B68: S32_4289 | D68: Cruz & Sons Co.
A69: Daedalus Designs Imports | B69: S50_1341 | D69: Daedalus Designs Imports
A70: Microscale Inc. | B70: S12_1099 | D70: Microscale Inc.
A71: Boards & Toys Co. | B71: S700_1691 | D71: Boards & Toys Co.
A72: Muscle Machine Inc | B72: S700_2047 | D72: Muscle Machine Inc
A73: Signal Collectibles Ltd. | B73: S700_2466 | D73: Signal Collectibles Ltd.
A74: Royale Belge | B74: S700_2834 | D74: Royale Belge
A75: Dragon Souveniers, Ltd. | B75: S700_3167 | D75: Dragon Souveniers, Ltd.
A76: Mini Caravy | B76: S700_4002 | D76: Mini Caravy
A77: Enaco Distributors | B77: S72_1253 | D77: Enaco Distributors
A78: Signal Gift Stores | B78: S12_2823 | D78: Signal Gift Stores
A79: Mini Creations Ltd. | B79: S18_2625 | D79: Mini Creations Ltd.
A80: Herkku Gifts | B80: S24_1578 | D80: Herkku Gifts
A81: Marseille Mini Autos | B81: S24_2000 | D81: Marseille Mini Autos
A82: Toys4GrownUps.com | B82: S32_1374 | D82: Toys4GrownUps.com
A83: Norway Gifts By Mail, Co. | B83: S12_3380 | D83: Norway Gifts By Mail, Co.
A84: Bavarian Collectables Imports, Co. | B84: S12_3990 | D84: Bavarian Collectables Imports, Co.
A85: Stylish Desk Decors, Co. | B85: S12_4675 | D85: Stylish Desk Decors, Co.
A86: Iberia Gift Imports, Corp. | B86: S18_1889 | D86: Iberia Gift Imports, Corp.
A87: Gift Ideas Corp. | B87: S18_3278 | D87: Gift Ideas Corp.
A88: Auto-Moto Classics Inc. | B88: S18_3482 | D88: Auto-Moto Classics Inc.
A89: Diecast Collectables | B89: S18_3782 | D89: Diecast Collectables
A90: Alpha Cognac | B90: S18_4721 | D90: Alpha Cognac
A91: Mini Auto Werke | B91: S24_2360 | D91: Mini Auto Werke
A92: Australian Collectables, Ltd | B92: S24_3371 | D92: Australian Collectables, Ltd
A93: Double Decker Gift Stores, Ltd | B93: S24_3856 | D93: Double Decker Gift Stores, Ltd
A94: 0 | B94: S24_4620
B95: S32_2206
B96: S32_4485
B97: S50_4713
B98: S18_1129
B99: S18_1984
B100: S18_2870
B101: S18_3685
B102: S24_2972
B103: S18_1589
B104: S18_4933
B105: S24_1046
B106: S24_1628
B107: S24_2766
B108: S24_2887
B109: S24_3191
B110: S24_3432

Sheet ReportProduct
A1: S18_1749 | B1: ORDERDATE | C1: QUANTITYORDERED | E1: ORDERDATE | F1: SALES | H1: COUNTRY | I1: QUANTITYORDERED | K1: COUNTRY | L1: SALES
B2: =_xlfn.UNIQUE(_xlfn._xlws.FILTER(RAW!D2:D99999,RAW!F2:F99999=ReportProduct!A1)) -> 2003-01-06 | C2: =SUMIFS(RAW!$B$2:$B$99999,RAW!$D$2:$D$99999,ReportProduct!$B2,RAW!$F$2:$F$99999,ReportProduct!$A$1) -> 30 | E2: =_xlfn.UNIQUE(_xlfn._xlws.FILTER(RAW!D2:D99999,RAW!F2:F99999=ReportProduct!A1)) -> 2003-01-06 | F2: =SUMIFS(RAW!$C$2:$C$99999,RAW!$D$2:$D$99999,ReportProduct!$B2,RAW!$F$2:$F$99999,ReportProduct!$A$1) -> 5151 | H2: =_xlfn._xlws.FILTER(_xlfn.UNIQUE(RAW!H2:H99999),_xlfn.UNIQUE(RAW!H2:H99999)<>0) -> USA | I2: =IF(SUMIFS(RAW!$B$2:$B$99999,RAW!$H$2:$H$99999,ReportProduct!$H2,RAW!$F$2:$F$99999,ReportProduct!$A$1)<>0,SUMIFS(RAW!$B$2:$B$99999,RAW!$H$2:$H$99999,ReportProduct!$H2,RAW!$F$2:$F$99999,ReportProduct!$A$1),"") -> 396 | K2: =_xlfn._xlws.FILTER(_xlfn.UNIQUE(RAW!H2:H99999),_xlfn.UNIQUE(RAW!H2:H99999)<>0) -> USA | L2: =IF(SUMIFS(RAW!$C$2:$C$99999,RAW!$H$2:$H$99999,ReportProduct!$K2,RAW!$F$2:$F$99999,ReportProduct!$A$1)<>0,SUMIFS(RAW!$C$2:$C$99999,RAW!$H$2:$H$99999,ReportProduct!$K2,RAW!$F$2:$F$99999,ReportProduct!$A$1),"") -> 62126.97
B3: 2003-03-18 | C3: =IFERROR(SUMIFS(RAW!$B$2:$B$99999,RAW!$D$2:$D$99999,ReportProduct!$B3,RAW!$F$2:$F$99999,ReportProduct!$A$1),"") -> 42 | E3: 2003-03-18 | F3: =SUMIFS(RAW!$C$2:$C$99999,RAW!$D$2:$D$99999,ReportProduct!$B3,RAW!$F$2:$F$99999,ReportProduct!$A$1) -> 6069 | H3: Germany | I3: =IF(SUMIFS(RAW!$B$2:$B$99999,RAW!$H$2:$H$99999,ReportProduct!$H3,RAW!$F$2:$F$99999,ReportProduct!$A$1)<>0,SUMIFS(RAW!$B$2:$B$99999,RAW!$H$2:$H$99999,ReportProduct!$H3,RAW!$F$2:$F$99999,ReportProduct!$A$1),"") ->  | K3: Germany | L3: =IF(SUMIFS(RAW!$C$2:$C$99999,RAW!$H$2:$H$99999,ReportProduct!$K3,RAW!$F$2:$F$99999,ReportProduct!$A$1)<>0,SUMIFS(RAW!$C$2:$C$99999,RAW!$H$2:$H$99999,ReportProduct!$K3,RAW!$F$2:$F$99999,ReportProduct!$A$1),"") -> 
B4: 2003-05-21 | C4: =IFERROR(SUMIFS(RAW!$B$2:$B$99999,RAW!$D$2:$D$99999,ReportProduct!$B4,RAW!$F$2:$F$99999,ReportProduct!$A$1),"") -> 21 | E4: 2003-05-21 | F4: =SUMIFS(RAW!$C$2:$C$99999,RAW!$D$2:$D$99999,ReportProduct!$B4,RAW!$F$2:$F$99999,ReportProduct!$A$1) -> 2856 | H4: France | I4: =IF(SUMIFS(RAW!$B$2:$B$99999,RAW!$H$2:$H$99999,ReportProduct!$H4,RAW!$F$2:$F$99999,ReportProduct!$A$1)<>0,SUMIFS(RAW!$B$2:$B$99999,RAW!$H$2:$H$99999,ReportProduct!$H4,RAW!$F$2:$F$99999,ReportProduct!$A$1),"") -> 112 | K4: France | L4: =IF(SUMIFS(RAW!$C$2:$C$99999,RAW!$H$2:$H$99999,ReportProduct!$K4,RAW!$F$2:$F$99999,ReportProduct!$A$1)<>0,SUMIFS(RAW!$C$2:$C$99999,RAW!$H$2:$H$99999,ReportProduct!$K4,RAW!$F$2:$F$99999,ReportProduct!$A$1),"") -> 18960.1
B5: 2004-01-26 | C5: =IFERROR(SUMIFS(RAW!$B$2:$B$99999,RAW!$D$2:$D$99999,ReportProduct!$B5,RAW!$F$2:$F$99999,ReportProduct!$A$1),"") -> 30 | E5: 2004-01-26 | F5: =SUMIFS(RAW!$C$2:$C$99999,RAW!$D$2:$D$99999,ReportProduct!$B5,RAW!$F$2:$F$99999,ReportProduct!$A$1) -> 5967 | H5: Australia | I5: =IF(SUMIFS(RAW!$B$2:$B$99999,RAW!$H$2:$H$99999,ReportProduct!$H5,RAW!$F$2:$F$99999,ReportProduct!$A$1)<>0,SUMIFS(RAW!$B$2:$B$99999,RAW!$H$2:$H$99999,ReportProduct!$H5,RAW!$F$2:$F$99999,ReportProduct!$A$1),"") -> 58 | K5: Australia | L5: =IF(SUMIFS(RAW!$C$2:$C$99999,RAW!$H$2:$H$99999,ReportProduct!$K5,RAW!$F$2:$F$99999,ReportProduct!$A$1)<>0,SUMIFS(RAW!$C$2:$C$99999,RAW!$H$2:$H$99999,ReportProduct!$K5,RAW!$F$2:$F$99999,ReportProduct!$A$1),"") -> 8425.2
B6: 2004-03-02 | C6: =IFERROR(SUMIFS(RAW!$B$2:$B$99999,RAW!$D$2:$D$99999,ReportProduct!$B6,RAW!$F$2:$F$99999,ReportProduct!$A$1),"") -> 26 | E6: 2004-03-02 | F6: =SUMIFS(RAW!$C$2:$C$99999,RAW!$D$2:$D$99999,ReportProduct!$B6,RAW!$F$2:$F$99999,ReportProduct!$A$1) -> 3712.8 | H6: Finland | I6: =IF(SUMIFS(RAW!$B$2:$B$99999,RAW!$H$2:$H$99999,ReportProduct!$H6,RAW!$F$2:$F$99999,ReportProduct!$A$1)<>0,SUMIFS(RAW!$B$2:$B$99999,RAW!$H$2:$H$99999,ReportProduct!$H6,RAW!$F$2:$F$99999,ReportProduct!$A$1),"") ->  | K6: Finland | L6: =IF(SUMIFS(RAW!$C$2:$C$99999,RAW!$H$2:$H$99999,ReportProduct!$K6,RAW!$F$2:$F$99999,ReportProduct!$A$1)<>0,SUMIFS(RAW!$C$2:$C$99999,RAW!$H$2:$H$99999,ReportProduct!$K6,RAW!$F$2:$F$99999,ReportProduct!$A$1),"") -> 
B7: 2004-04-13 | C7: =IFERROR(SUMIFS(RAW!$B$2:$B$99999,RAW!$D$2:$D$99999,ReportProduct!$B7,RAW!$F$2:$F$99999,ReportProduct!$A$1),"") -> 41 | E7: 2004-04-13 | F7: =SUMIFS(RAW!$C$2:$C$99999,RAW!$D$2:$D$99999,ReportProduct!$B7,RAW!$F$2:$F$99999,ReportProduct!$A$1) -> 7597.3 | H7: Norway | I7: =IF(SUMIFS(RAW!$B$2:$B$99999,RAW!$H$2:$H$99999,ReportProduct!$H7,RAW!$F$2:$F$99999,ReportProduct!$A$1)<>0,SUMIFS(RAW!$B$2:$B$99999,RAW!$H$2:$H$99999,ReportProduct!$H7,RAW!$F$2:$F$99999,ReportProduct!$A$1),"") ->  | K7: Norway | L7: =IF(SUMIFS(RAW!$C$2:$C$99999,RAW!$H$2:$H$99999,ReportProduct!$K7,RAW!$F$2:$F$99999,ReportProduct!$A$1)<>0,SUMIFS(RAW!$C$2:$C$99999,RAW!$H$2:$H$99999,ReportProduct!$K7,RAW!$F$2:$F$99999,ReportProduct!$A$1),"") -> 
B8: 2004-08-17 | C8: =IFERROR(SUMIFS(RAW!$B$2:$B$99999,RAW!$D$2:$D$99999,ReportProduct!$B8,RAW!$F$2:$F$99999,ReportProduct!$A$1),"") -> 26 | E8: 2004-08-17 | F8: =SUMIFS(RAW!$C$2:$C$99999,RAW!$D$2:$D$99999,ReportProduct!$B8,RAW!$F$2:$F$99999,ReportProduct!$A$1) -> 3668.6 | H8: Austria | I8: =IF(SUMIFS(RAW!$B$2:$B$99999,RAW!$H$2:$H$99999,ReportProduct!$H8,RAW!$F$2:$F$99999,ReportProduct!$A$1)<>0,SUMIFS(RAW!$B$2:$B$99999,RAW!$H$2:$H$99999,ReportProduct!$H8,RAW!$F$2:$F$99999,ReportProduct!$A$1),"") ->  | K8: Austria | L8: =IF(SUMIFS(RAW!$C$2:$C$99999,RAW!$H$2:$H$99999,ReportProduct!$K8,RAW!$F$2:$F$99999,ReportProduct!$A$1)<>0,SUMIFS(RAW!$C$2:$C$99999,RAW!$H$2:$H$99999,ReportProduct!$K8,RAW!$F$2:$F$99999,ReportProduct!$A$1),"") -> 
B9: 2004-09-01 | C9: =IFERROR(SUMIFS(RAW!$B$2:$B$99999,RAW!$D$2:$D$99999,ReportProduct!$B9,RAW!$F$2:$F$99999,ReportProduct!$A$1),"") -> 32 | E9: 2004-09-01 | F9: =SUMIFS(RAW!$C$2:$C$99999,RAW!$D$2:$D$99999,ReportProduct!$B9,RAW!$F$2:$F$99999,ReportProduct!$A$1) -> 5875.2 | H9: UK | I9: =IF(SUMIFS(RAW!$B$2:$B$99999,RAW!$H$2:$H$99999,ReportProduct!$H9,RAW!$F$2:$F$99999,ReportProduct!$A$1)<>0,SUMIFS(RAW!$B$2:$B$99999,RAW!$H$2:$H$99999,ReportProduct!$H9,RAW!$F$2:$F$99999,ReportProduct!$A$1),"") -> 85 | K9: UK | L9: =IF(SUMIFS(RAW!$C$2:$C$99999,RAW!$H$2:$H$99999,ReportProduct!$K9,RAW!$F$2:$F$99999,ReportProduct!$A$1)<>0,SUMIFS(RAW!$C$2:$C$99999,RAW!$H$2:$H$99999,ReportProduct!$K9,RAW!$F$2:$F$99999,ReportProduct!$A$1),"") -> 13379
B10: 2004-10-21 | C10: =IFERROR(SUMIFS(RAW!$B$2:$B$99999,RAW!$D$2:$D$99999,ReportProduct!$B10,RAW!$F$2:$F$99999,ReportProduct!$A$1),"") -> 48 | E10: 2004-10-21 | F10: =SUMIFS(RAW!$C$2:$C$99999,RAW!$D$2:$D$99999,ReportProduct!$B10,RAW!$F$2:$F$99999,ReportProduct!$A$1) -> 8078.4 | H10: Spain | I10: =IF(SUMIFS(RAW!$B$2:$B$99999,RAW!$H$2:$H$99999,ReportProduct!$H10,RAW!$F$2:$F$99999,ReportProduct!$A$1)<>0,SUMIFS(RAW!$B$2:$B$99999,RAW!$H$2:$H$99999,ReportProduct!$H10,RAW!$F$2:$F$99999,ReportProduct!$A$1),"") -> 69 | K10: Spain | L10: =IF(SUMIFS(RAW!$C$2:$C$99999,RAW!$H$2:$H$99999,ReportProduct!$K10,RAW!$F$2:$F$99999,ReportProduct!$A$1)<>0,SUMIFS(RAW!$C$2:$C$99999,RAW!$H$2:$H$99999,ReportProduct!$K10,RAW!$F$2:$F$99999,ReportProduct!$A$1),"") -> 11366.55
B11: 2004-11-17 | C11: =IFERROR(SUMIFS(RAW!$B$2:$B$99999,RAW!$D$2:$D$99999,ReportProduct!$B11,RAW!$F$2:$F$99999,ReportProduct!$A$1),"") -> 44 | E11: 2004-11-17 | F11: =SUMIFS(RAW!$C$2:$C$99999,RAW!$D$2:$D$99999,ReportProduct!$B11,RAW!$F$2:$F$99999,ReportProduct!$A$1) -> 3257.76 | H11: Japan | I11: =IF(SUMIFS(RAW!$B$2:$B$99999,RAW!$H$2:$H$99999,ReportProduct!$H11,RAW!$F$2:$F$99999,ReportProduct!$A$1)<>0,SUMIFS(RAW!$B$2:$B$99999,RAW!$H$2:$H$99999,ReportProduct!$H11,RAW!$F$2:$F$99999,ReportProduct!$A$1),"") ->  | K11: Japan | L11: =IF(SUMIFS(RAW!$C$2:$C$99999,RAW!$H$2:$H$99999,ReportProduct!$K11,RAW!$F$2:$F$99999,ReportProduct!$A$1)<>0,SUMIFS(RAW!$C$2:$C$99999,RAW!$H$2:$H$99999,ReportProduct!$K11,RAW!$F$2:$F$99999,ReportProduct!$A$1),"") -> 
B12: 2004-11-25 | C12: =IFERROR(SUMIFS(RAW!$B$2:$B$99999,RAW!$D$2:$D$99999,ReportProduct!$B12,RAW!$F$2:$F$99999,ReportProduct!$A$1),"") -> 45 | E12: 2004-11-25 | F12: =SUMIFS(RAW!$C$2:$C$99999,RAW!$D$2:$D$99999,ReportProduct!$B12,RAW!$F$2:$F$99999,ReportProduct!$A$1) -> 7650 | H12: Italy | I12: =IF(SUMIFS(RAW!$B$2:$B$99999,RAW!$H$2:$H$99999,ReportProduct!$H12,RAW!$F$2:$F$99999,ReportProduct!$A$1)<>0,SUMIFS(RAW!$B$2:$B$99999,RAW!$H$2:$H$99999,ReportProduct!$H12,RAW!$F$2:$F$99999,ReportProduct!$A$1),"") -> 50 | K12: Italy | L12: =IF(SUMIFS(RAW!$C$2:$C$99999,RAW!$H$2:$H$99999,ReportProduct!$K12,RAW!$F$2:$F$99999,ReportProduct!$A$1)<>0,SUMIFS(RAW!$C$2:$C$99999,RAW!$H$2:$H$99999,ReportProduct!$K12,RAW!$F$2:$F$99999,ReportProduct!$A$1),"") -> 7177.4
B13: 2005-01-12 | C13: =IFERROR(SUMIFS(RAW!$B$2:$B$99999,RAW!$D$2:$D$99999,ReportProduct!$B13,RAW!$F$2:$F$99999,ReportProduct!$A$1),"") -> 37 | E13: 2005-01-12 | F13: =SUMIFS(RAW!$C$2:$C$99999,RAW!$D$2:$D$99999,ReportProduct!$B13,RAW!$F$2:$F$99999,ReportProduct!$A$1) -> 4703.81 | H13: Sweden | I13: =IF(SUMIFS(RAW!$B$2:$B$99999,RAW!$H$2:$H$99999,ReportProduct!$H13,RAW!$F$2:$F$99999,ReportProduct!$A$1)<>0,SUMIFS(RAW!$B$2:$B$99999,RAW!$H$2:$H$99999,ReportProduct!$H13,RAW!$F$2:$F$99999,ReportProduct!$A$1),"") ->  | K13: Sweden | L13: =IF(SUMIFS(RAW!$C$2:$C$99999,RAW!$H$2:$H$99999,ReportProduct!$K13,RAW!$F$2:$F$99999,ReportProduct!$A$1)<>0,SUMIFS(RAW!$C$2:$C$99999,RAW!$H$2:$H$99999,ReportProduct!$K13,RAW!$F$2:$F$99999,ReportProduct!$A$1),"") -> 
B14: 2005-02-10 | C14: =IFERROR(SUMIFS(RAW!$B$2:$B$99999,RAW!$D$2:$D$99999,ReportProduct!$B14,RAW!$F$2:$F$99999,ReportProduct!$A$1),"") -> 39 | E14: 2005-02-10 | F14: =SUMIFS(RAW!$C$2:$C$99999,RAW!$D$2:$D$99999,ReportProduct!$B14,RAW!$F$2:$F$99999,ReportProduct!$A$1) -> 5399.55 | H14: Canada | I14: =IF(SUMIFS(RAW!$B$2:$B$99999,RAW!$H$2:$H$99999,ReportProduct!$H14,RAW!$F$2:$F$99999,ReportProduct!$A$1)<>0,SUMIFS(RAW!$B$2:$B$99999,RAW!$H$2:$H$99999,ReportProduct!$H14,RAW!$F$2:$F$99999,ReportProduct!$A$1),"") ->  | K14: Canada | L14: =IF(SUMIFS(RAW!$C$2:$C$99999,RAW!$H$2:$H$99999,ReportProduct!$K14,RAW!$F$2:$F$99999,ReportProduct!$A$1)<>0,SUMIFS(RAW!$C$2:$C$99999,RAW!$H$2:$H$99999,ReportProduct!$K14,RAW!$F$2:$F$99999,ReportProduct!$A$1),"") -> 
B15: 2005-04-22 | C15: =IFERROR(SUMIFS(RAW!$B$2:$B$99999,RAW!$D$2:$D$99999,ReportProduct!$B15,RAW!$F$2:$F$99999,ReportProduct!$A$1),"") -> 76 | E15: 2005-04-22 | F15: =SUMIFS(RAW!$C$2:$C$99999,RAW!$D$2:$D$99999,ReportProduct!$B15,RAW!$F$2:$F$99999,ReportProduct!$A$1) -> 14082.8 | H15: Denmark | I15: =IF(SUMIFS(RAW!$B$2:$B$99999,RAW!$H$2:$H$99999,ReportProduct!$H15,RAW!$F$2:$F$99999,ReportProduct!$A$1)<>0,SUMIFS(RAW!$B$2:$B$99999,RAW!$H$2:$H$99999,ReportProduct!$H15,RAW!$F$2:$F$99999,ReportProduct!$A$1),"") ->  | K15: Denmark | L15: =IF(SUMIFS(RAW!$C$2:$C$99999,RAW!$H$2:$H$99999,ReportProduct!$K15,RAW!$F$2:$F$99999,ReportProduct!$A$1)<>0,SUMIFS(RAW!$C$2:$C$99999,RAW!$H$2:$H$99999,ReportProduct!$K15,RAW!$F$2:$F$99999,ReportProduct!$A$1),"") -> 
B16: 2005-05-29 | C16: =IFERROR(SUMIFS(RAW!$B$2:$B$99999,RAW!$D$2:$D$99999,ReportProduct!$B16,RAW!$F$2:$F$99999,ReportProduct!$A$1),"") -> 37 | E16: 2005-05-29 | F16: =SUMIFS(RAW!$C$2:$C$99999,RAW!$D$2:$D$99999,ReportProduct!$B16,RAW!$F$2:$F$99999,ReportProduct!$A$1) -> 5283.6 | H16: Belgium | I16: =IF(SUMIFS(RAW!$B$2:$B$99999,RAW!$H$2:$H$99999,ReportProduct!$H16,RAW!$F$2:$F$99999,ReportProduct!$A$1)<>0,SUMIFS(RAW!$B$2:$B$99999,RAW!$H$2:$H$99999,ReportProduct!$H16,RAW!$F$2:$F$99999,ReportProduct!$A$1),"") ->  | K16: Belgium | L16: =IF(SUMIFS(RAW!$C$2:$C$99999,RAW!$H$2:$H$99999,ReportProduct!$K16,RAW!$F$2:$F$99999,ReportProduct!$A$1)<>0,SUMIFS(RAW!$C$2:$C$99999,RAW!$H$2:$H$99999,ReportProduct!$K16,RAW!$F$2:$F$99999,ReportProduct!$A$1),"") -> 
B17: 2003-09-12 | C17: =IFERROR(SUMIFS(RAW!$B$2:$B$99999,RAW!$D$2:$D$99999,ReportProduct!$B17,RAW!$F$2:$F$99999,ReportProduct!$A$1),"") -> 34 | E17: 2003-09-12 | F17: =SUMIFS(RAW!$C$2:$C$99999,RAW!$D$2:$D$99999,ReportProduct!$B17,RAW!$F$2:$F$99999,ReportProduct!$A$1) -> 5375.4 | H17: Singapore | I17: =IF(SUMIFS(RAW!$B$2:$B$99999,RAW!$H$2:$H$99999,ReportProduct!$H17,RAW!$F$2:$F$99999,ReportProduct!$A$1)<>0,SUMIFS(RAW!$B$2:$B$99999,RAW!$H$2:$H$99999,ReportProduct!$H17,RAW!$F$2:$F$99999,ReportProduct!$A$1),"") -> 32 | K17: Singapore | L17: =IF(SUMIFS(RAW!$C$2:$C$99999,RAW!$H$2:$H$99999,ReportProduct!$K17,RAW!$F$2:$F$99999,ReportProduct!$A$1)<>0,SUMIFS(RAW!$C$2:$C$99999,RAW!$H$2:$H$99999,ReportProduct!$K17,RAW!$F$2:$F$99999,ReportProduct!$A$1),"") -> 5875.2
B18: 2003-10-06 | C18: =IFERROR(SUMIFS(RAW!$B$2:$B$99999,RAW!$D$2:$D$99999,ReportProduct!$B18,RAW!$F$2:$F$99999,ReportProduct!$A$1),"") -> 43 | E18: 2003-10-06 | F18: =SUMIFS(RAW!$C$2:$C$99999,RAW!$D$2:$D$99999,ReportProduct!$B18,RAW!$F$2:$F$99999,ReportProduct!$A$1) -> 7310 | H18: Switzerland | I18: =IF(SUMIFS(RAW!$B$2:$B$99999,RAW!$H$2:$H$99999,ReportProduct!$H18,RAW!$F$2:$F$99999,ReportProduct!$A$1)<>0,SUMIFS(RAW!$B$2:$B$99999,RAW!$H$2:$H$99999,ReportProduct!$H18,RAW!$F$2:$F$99999,ReportProduct!$A$1),"") ->  | K18: Switzerland | L18: =IF(SUMIFS(RAW!$C$2:$C$99999,RAW!$H$2:$H$99999,ReportProduct!$K18,RAW!$F$2:$F$99999,ReportProduct!$A$1)<>0,SUMIFS(RAW!$C$2:$C$99999,RAW!$H$2:$H$99999,ReportProduct!$K18,RAW!$F$2:$F$99999,ReportProduct!$A$1),"") -> 
B19: 2003-10-18 | C19: =IFERROR(SUMIFS(RAW!$B$2:$B$99999,RAW!$D$2:$D$99999,ReportProduct!$B19,RAW!$F$2:$F$99999,ReportProduct!$A$1),"") -> 29 | E19: 2003-10-18 | F19: =SUMIFS(RAW!$C$2:$C$99999,RAW!$D$2:$D$99999,ReportProduct!$B19,RAW!$F$2:$F$99999,ReportProduct!$A$1) -> 5176.5 | H19: Ireland | I19: =IF(SUMIFS(RAW!$B$2:$B$99999,RAW!$H$2:$H$99999,ReportProduct!$H19,RAW!$F$2:$F$99999,ReportProduct!$A$1)<>0,SUMIFS(RAW!$B$2:$B$99999,RAW!$H$2:$H$99999,ReportProduct!$H19,RAW!$F$2:$F$99999,ReportProduct!$A$1),"") ->  | K19: Ireland | L19: =IF(SUMIFS(RAW!$C$2:$C$99999,RAW!$H$2:$H$99999,ReportProduct!$K19,RAW!$F$2:$F$99999,ReportProduct!$A$1)<>0,SUMIFS(RAW!$C$2:$C$99999,RAW!$H$2:$H$99999,ReportProduct!$K19,RAW!$F$2:$F$99999,ReportProduct!$A$1),"") -> 
B20: 2003-11-05 | C20: =IFERROR(SUMIFS(RAW!$B$2:$B$99999,RAW!$D$2:$D$99999,ReportProduct!$B20,RAW!$F$2:$F$99999,ReportProduct!$A$1),"") -> 24 | E20: 2003-11-05 | F20: =SUMIFS(RAW!$C$2:$C$99999,RAW!$D$2:$D$99999,ReportProduct!$B20,RAW!$F$2:$F$99999,ReportProduct!$A$1) -> 3508.8 | H20: Philippines | I20: =IF(SUMIFS(RAW!$B$2:$B$99999,RAW!$H$2:$H$99999,ReportProduct!$H20,RAW!$F$2:$F$99999,ReportProduct!$A$1)<>0,SUMIFS(RAW!$B$2:$B$99999,RAW!$H$2:$H$99999,ReportProduct!$H20,RAW!$F$2:$F$99999,ReportProduct!$A$1),"") ->  | K20: Philippines | L20: =IF(SUMIFS(RAW!$C$2:$C$99999,RAW!$H$2:$H$99999,ReportProduct!$K20,RAW!$F$2:$F$99999,ReportProduct!$A$1)<>0,SUMIFS(RAW!$C$2:$C$99999,RAW!$H$2:$H$99999,ReportProduct!$K20,RAW!$F$2:$F$99999,ReportProduct!$A$1),"") -> 
B21: 2003-11-12 | C21: =IFERROR(SUMIFS(RAW!$B$2:$B$99999,RAW!$D$2:$D$99999,ReportProduct!$B21,RAW!$F$2:$F$99999,ReportProduct!$A$1),"") -> 44 | E21: 2003-11-12 | F21: =SUMIFS(RAW!$C$2:$C$99999,RAW!$D$2:$D$99999,ReportProduct!$B21,RAW!$F$2:$F$99999,ReportProduct!$A$1) -> 7554.8 | I21: =IF(SUMIFS(RAW!$B$2:$B$99999,RAW!$H$2:$H$99999,ReportProduct!$H21,RAW!$F$2:$F$99999,ReportProduct!$A$1)<>0,SUMIFS(RAW!$B$2:$B$99999,RAW!$H$2:$H$99999,ReportProduct!$H21,RAW!$F$2:$F$99999,ReportProduct!$A$1),"") ->  | L21: =IF(SUMIFS(RAW!$C$2:$C$99999,RAW!$H$2:$H$99999,ReportProduct!$K21,RAW!$F$2:$F$99999,ReportProduct!$A$1)<>0,SUMIFS(RAW!$C$2:$C$99999,RAW!$H$2:$H$99999,ReportProduct!$K21,RAW!$F$2:$F$99999,ReportProduct!$A$1),"") -> 
B22: 2003-11-21 | C22: =IFERROR(SUMIFS(RAW!$B$2:$B$99999,RAW!$D$2:$D$99999,ReportProduct!$B22,RAW!$F$2:$F$99999,ReportProduct!$A$1),"") -> 21 | E22: 2003-11-21 | F22: =SUMIFS(RAW!$C$2:$C$99999,RAW!$D$2:$D$99999,ReportProduct!$B22,RAW!$F$2:$F$99999,ReportProduct!$A$1) -> 3141.6 | I22: =IF(SUMIFS(RAW!$B$2:$B$99999,RAW!$H$2:$H$99999,ReportProduct!$H22,RAW!$F$2:$F$99999,ReportProduct!$A$1)<>0,SUMIFS(RAW!$B$2:$B$99999,RAW!$H$2:$H$99999,ReportProduct!$H22,RAW!$F$2:$F$99999,ReportProduct!$A$1),"") ->  | L22: =IF(SUMIFS(RAW!$C$2:$C$99999,RAW!$H$2:$H$99999,ReportProduct!$K22,RAW!$F$2:$F$99999,ReportProduct!$A$1)<>0,SUMIFS(RAW!$C$2:$C$99999,RAW!$H$2:$H$99999,ReportProduct!$K22,RAW!$F$2:$F$99999,ReportProduct!$A$1),"") -> 
B23: 2003-12-02 | C23: =IFERROR(SUMIFS(RAW!$B$2:$B$99999,RAW!$D$2:$D$99999,ReportProduct!$B23,RAW!$F$2:$F$99999,ReportProduct!$A$1),"") -> 33 | E23: 2003-12-02 | F23: =SUMIFS(RAW!$C$2:$C$99999,RAW!$D$2:$D$99999,ReportProduct!$B23,RAW!$F$2:$F$99999,ReportProduct!$A$1) -> 5890.5 | I23: =IF(SUMIFS(RAW!$B$2:$B$99999,RAW!$H$2:$H$99999,ReportProduct!$H23,RAW!$F$2:$F$99999,ReportProduct!$A$1)<>0,SUMIFS(RAW!$B$2:$B$99999,RAW!$H$2:$H$99999,ReportProduct!$H23,RAW!$F$2:$F$99999,ReportProduct!$A$1),"") ->  | L23: =IF(SUMIFS(RAW!$C$2:$C$99999,RAW!$H$2:$H$99999,ReportProduct!$K23,RAW!$F$2:$F$99999,ReportProduct!$A$1)<>0,SUMIFS(RAW!$C$2:$C$99999,RAW!$H$2:$H$99999,ReportProduct!$K23,RAW!$F$2:$F$99999,ReportProduct!$A$1),"") -> 
C24: =IFERROR(SUMIFS(RAW!$B$2:$B$99999,RAW!$D$2:$D$99999,ReportProduct!$B24,RAW!$F$2:$F$99999,ReportProduct!$A$1),"") -> 0 | F24: =SUMIFS(RAW!$C$2:$C$99999,RAW!$D$2:$D$99999,ReportProduct!$B24,RAW!$F$2:$F$99999,ReportProduct!$A$1) -> 0 | I24: =IF(SUMIFS(RAW!$B$2:$B$99999,RAW!$H$2:$H$99999,ReportProduct!$H24,RAW!$F$2:$F$99999,ReportProduct!$A$1)<>0,SUMIFS(RAW!$B$2:$B$99999,RAW!$H$2:$H$99999,ReportProduct!$H24,RAW!$F$2:$F$99999,ReportProduct!$A$1),"") ->  | L24: =IF(SUMIFS(RAW!$C$2:$C$99999,RAW!$H$2:$H$99999,ReportProduct!$K24,RAW!$F$2:$F$99999,ReportProduct!$A$1)<>0,SUMIFS(RAW!$C$2:$C$99999,RAW!$H$2:$H$99999,ReportProduct!$K24,RAW!$F$2:$F$99999,ReportProduct!$A$1),"") -> 
C25: =IFERROR(SUMIFS(RAW!$B$2:$B$99999,RAW!$D$2:$D$99999,ReportProduct!$B25,RAW!$F$2:$F$99999,ReportProduct!$A$1),"") -> 0 | F25: =SUMIFS(RAW!$C$2:$C$99999,RAW!$D$2:$D$99999,ReportProduct!$B25,RAW!$F$2:$F$99999,ReportProduct!$A$1) -> 0 | I25: =IF(SUMIFS(RAW!$B$2:$B$99999,RAW!$H$2:$H$99999,ReportProduct!$H25,RAW!$F$2:$F$99999,ReportProduct!$A$1)<>0,SUMIFS(RAW!$B$2:$B$99999,RAW!$H$2:$H$99999,ReportProduct!$H25,RAW!$F$2:$F$99999,ReportProduct!$A$1),"") ->  | L25: =IF(SUMIFS(RAW!$C$2:$C$99999,RAW!$H$2:$H$99999,ReportProduct!$K25,RAW!$F$2:$F$99999,ReportProduct!$A$1)<>0,SUMIFS(RAW!$C$2:$C$99999,RAW!$H$2:$H$99999,ReportProduct!$K25,RAW!$F$2:$F$99999,ReportProduct!$A$1),"") -> 
C26: =IFERROR(SUMIFS(RAW!$B$2:$B$99999,RAW!$D$2:$D$99999,ReportProduct!$B26,RAW!$F$2:$F$99999,ReportProduct!$A$1),"") -> 0 | F26: =SUMIFS(RAW!$C$2:$C$99999,RAW!$D$2:$D$99999,ReportProduct!$B26,RAW!$F$2:$F$99999,ReportProduct!$A$1) -> 0 | I26: =IF(SUMIFS(RAW!$B$2:$B$99999,RAW!$H$2:$H$99999,ReportProduct!$H26,RAW!$F$2:$F$99999,ReportProduct!$A$1)<>0,SUMIFS(RAW!$B$2:$B$99999,RAW!$H$2:$H$99999,ReportProduct!$H26,RAW!$F$2:$F$99999,ReportProduct!$A$1),"") ->  | L26: =IF(SUMIFS(RAW!$C$2:$C$99999,RAW!$H$2:$H$99999,ReportProduct!$K26,RAW!$F$2:$F$99999,ReportProduct!$A$1)<>0,SUMIFS(RAW!$C$2:$C$99999,RAW!$H$2:$H$99999,ReportProduct!$K26,RAW!$F$2:$F$99999,ReportProduct!$A$1),"") -> 
C27: =IFERROR(SUMIFS(RAW!$B$2:$B$99999,RAW!$D$2:$D$99999,ReportProduct!$B27,RAW!$F$2:$F$99999,ReportProduct!$A$1),"") -> 0 | F27: =SUMIFS(RAW!$C$2:$C$99999,RAW!$D$2:$D$99999,ReportProduct!$B27,RAW!$F$2:$F$99999,ReportProduct!$A$1) -> 0 | I27: =IF(SUMIFS(RAW!$B$2:$B$99999,RAW!$H$2:$H$99999,ReportProduct!$H27,RAW!$F$2:$F$99999,ReportProduct!$A$1)<>0,SUMIFS(RAW!$B$2:$B$99999,RAW!$H$2:$H$99999,ReportProduct!$H27,RAW!$F$2:$F$99999,ReportProduct!$A$1),"") ->  | L27: =IF(SUMIFS(RAW!$C$2:$C$99999,RAW!$H$2:$H$99999,ReportProduct!$K27,RAW!$F$2:$F$99999,ReportProduct!$A$1)<>0,SUMIFS(RAW!$C$2:$C$99999,RAW!$H$2:$H$99999,ReportProduct!$K27,RAW!$F$2:$F$99999,ReportProduct!$A$1),"") -> 
C28: =IFERROR(SUMIFS(RAW!$B$2:$B$99999,RAW!$D$2:$D$99999,ReportProduct!$B28,RAW!$F$2:$F$99999,ReportProduct!$A$1),"") -> 0 | F28: =SUMIFS(RAW!$C$2:$C$99999,RAW!$D$2:$D$99999,ReportProduct!$B28,RAW!$F$2:$F$99999,ReportProduct!$A$1) -> 0 | I28: =IF(SUMIFS(RAW!$B$2:$B$99999,RAW!$H$2:$H$99999,ReportProduct!$H28,RAW!$F$2:$F$99999,ReportProduct!$A$1)<>0,SUMIFS(RAW!$B$2:$B$99999,RAW!$H$2:$H$99999,ReportProduct!$H28,RAW!$F$2:$F$99999,ReportProduct!$A$1),"") ->  | L28: =IF(SUMIFS(RAW!$C$2:$C$99999,RAW!$H$2:$H$99999,ReportProduct!$K28,RAW!$F$2:$F$99999,ReportProduct!$A$1)<>0,SUMIFS(RAW!$C$2:$C$99999,RAW!$H$2:$H$99999,ReportProduct!$K28,RAW!$F$2:$F$99999,ReportProduct!$A$1),"") -> 
C29: =IFERROR(SUMIFS(RAW!$B$2:$B$99999,RAW!$D$2:$D$99999,ReportProduct!$B29,RAW!$F$2:$F$99999,ReportProduct!$A$1),"") -> 0 | F29: =SUMIFS(RAW!$C$2:$C$99999,RAW!$D$2:$D$99999,ReportProduct!$B29,RAW!$F$2:$F$99999,ReportProduct!$A$1) -> 0 | I29: =IF(SUMIFS(RAW!$B$2:$B$99999,RAW!$H$2:$H$99999,ReportProduct!$H29,RAW!$F$2:$F$99999,ReportProduct!$A$1)<>0,SUMIFS(RAW!$B$2:$B$99999,RAW!$H$2:$H$99999,ReportProduct!$H29,RAW!$F$2:$F$99999,ReportProduct!$A$1),"") ->  | L29: =IF(SUMIFS(RAW!$C$2:$C$99999,RAW!$H$2:$H$99999,ReportProduct!$K29,RAW!$F$2:$F$99999,ReportProduct!$A$1)<>0,SUMIFS(RAW!$C$2:$C$99999,RAW!$H$2:$H$99999,ReportProduct!$K29,RAW!$F$2:$F$99999,ReportProduct!$A$1),"") -> 
C30: =IFERROR(SUMIFS(RAW!$B$2:$B$99999,RAW!$D$2:$D$99999,ReportProduct!$B30,RAW!$F$2:$F$99999,ReportProduct!$A$1),"") -> 0 | F30: =SUMIFS(RAW!$C$2:$C$99999,RAW!$D$2:$D$99999,ReportProduct!$B30,RAW!$F$2:$F$99999,ReportProduct!$A$1) -> 0 | I30: =IF(SUMIFS(RAW!$B$2:$B$99999,RAW!$H$2:$H$99999,ReportProduct!$H30,RAW!$F$2:$F$99999,ReportProduct!$A$1)<>0,SUMIFS(RAW!$B$2:$B$99999,RAW!$H$2:$H$99999,ReportProduct!$H30,RAW!$F$2:$F$99999,ReportProduct!$A$1),"") ->  | L30: =IF(SUMIFS(RAW!$C$2:$C$99999,RAW!$H$2:$H$99999,ReportProduct!$K30,RAW!$F$2:$F$99999,ReportProduct!$A$1)<>0,SUMIFS(RAW!$C$2:$C$99999,RAW!$H$2:$H$99999,ReportProduct!$K30,RAW!$F$2:$F$99999,ReportProduct!$A$1),"") -> 
C31: =IFERROR(SUMIFS(RAW!$B$2:$B$99999,RAW!$D$2:$D$99999,ReportProduct!$B31,RAW!$F$2:$F$99999,ReportProduct!$A$1),"") -> 0 | F31: =SUMIFS(RAW!$C$2:$C$99999,RAW!$D$2:$D$99999,ReportProduct!$B31,RAW!$F$2:$F$99999,ReportProduct!$A$1) -> 0 | I31: =IF(SUMIFS(RAW!$B$2:$B$99999,RAW!$H$2:$H$99999,ReportProduct!$H31,RAW!$F$2:$F$99999,ReportProduct!$A$1)<>0,SUMIFS(RAW!$B$2:$B$99999,RAW!$H$2:$H$99999,ReportProduct!$H31,RAW!$F$2:$F$99999,ReportProduct!$A$1),"") ->  | L31: =IF(SUMIFS(RAW!$C$2:$C$99999,RAW!$H$2:$H$99999,ReportProduct!$K31,RAW!$F$2:$F$99999,ReportProduct!$A$1)<>0,SUMIFS(RAW!$C$2:$C$99999,RAW!$H$2:$H$99999,ReportProduct!$K31,RAW!$F$2:$F$99999,ReportProduct!$A$1),"") -> 
C32: =IFERROR(SUMIFS(RAW!$B$2:$B$99999,RAW!$D$2:$D$99999,ReportProduct!$B32,RAW!$F$2:$F$99999,ReportProduct!$A$1),"") -> 0 | F32: =SUMIFS(RAW!$C$2:$C$99999,RAW!$D$2:$D$99999,ReportProduct!$B32,RAW!$F$2:$F$99999,ReportProduct!$A$1) -> 0 | I32: =IF(SUMIFS(RAW!$B$2:$B$99999,RAW!$H$2:$H$99999,ReportProduct!$H32,RAW!$F$2:$F$99999,ReportProduct!$A$1)<>0,SUMIFS(RAW!$B$2:$B$99999,RAW!$H$2:$H$99999,ReportProduct!$H32,RAW!$F$2:$F$99999,ReportProduct!$A$1),"") ->  | L32: =IF(SUMIFS(RAW!$C$2:$C$99999,RAW!$H$2:$H$99999,ReportProduct!$K32,RAW!$F$2:$F$99999,ReportProduct!$A$1)<>0,SUMIFS(RAW!$C$2:$C$99999,RAW!$H$2:$H$99999,ReportProduct!$K32,RAW!$F$2:$F$99999,ReportProduct!$A$1),"") -> 
C33: =IFERROR(SUMIFS(RAW!$B$2:$B$99999,RAW!$D$2:$D$99999,ReportProduct!$B33,RAW!$F$2:$F$99999,ReportProduct!$A$1),"") -> 0 | F33: =SUMIFS(RAW!$C$2:$C$99999,RAW!$D$2:$D$99999,ReportProduct!$B33,RAW!$F$2:$F$99999,ReportProduct!$A$1) -> 0 | I33: =IF(SUMIFS(RAW!$B$2:$B$99999,RAW!$H$2:$H$99999,ReportProduct!$H33,RAW!$F$2:$F$99999,ReportProduct!$A$1)<>0,SUMIFS(RAW!$B$2:$B$99999,RAW!$H$2:$H$99999,ReportProduct!$H33,RAW!$F$2:$F$99999,ReportProduct!$A$1),"") ->  | L33: =IF(SUMIFS(RAW!$C$2:$C$99999,RAW!$H$2:$H$99999,ReportProduct!$K33,RAW!$F$2:$F$99999,ReportProduct!$A$1)<>0,SUMIFS(RAW!$C$2:$C$99999,RAW!$H$2:$H$99999,ReportProduct!$K33,RAW!$F$2:$F$99999,ReportProduct!$A$1),"") -> 
C34: =IFERROR(SUMIFS(RAW!$B$2:$B$99999,RAW!$D$2:$D$99999,ReportProduct!$B34,RAW!$F$2:$F$99999,ReportProduct!$A$1),"") -> 0 | F34: =SUMIFS(RAW!$C$2:$C$99999,RAW!$D$2:$D$99999,ReportProduct!$B34,RAW!$F$2:$F$99999,ReportProduct!$A$1) -> 0 | I34: =IF(SUMIFS(RAW!$B$2:$B$99999,RAW!$H$2:$H$99999,ReportProduct!$H34,RAW!$F$2:$F$99999,ReportProduct!$A$1)<>0,SUMIFS(RAW!$B$2:$B$99999,RAW!$H$2:$H$99999,ReportProduct!$H34,RAW!$F$2:$F$99999,ReportProduct!$A$1),"") ->  | L34: =IF(SUMIFS(RAW!$C$2:$C$99999,RAW!$H$2:$H$99999,ReportProduct!$K34,RAW!$F$2:$F$99999,ReportProduct!$A$1)<>0,SUMIFS(RAW!$C$2:$C$99999,RAW!$H$2:$H$99999,ReportProduct!$K34,RAW!$F$2:$F$99999,ReportProduct!$A$1),"") -> 
C35: =IFERROR(SUMIFS(RAW!$B$2:$B$99999,RAW!$D$2:$D$99999,ReportProduct!$B35,RAW!$F$2:$F$99999,ReportProduct!$A$1),"") -> 0 | F35: =SUMIFS(RAW!$C$2:$C$99999,RAW!$D$2:$D$99999,ReportProduct!$B35,RAW!$F$2:$F$99999,ReportProduct!$A$1) -> 0 | I35: =IF(SUMIFS(RAW!$B$2:$B$99999,RAW!$H$2:$H$99999,ReportProduct!$H35,RAW!$F$2:$F$99999,ReportProduct!$A$1)<>0,SUMIFS(RAW!$B$2:$B$99999,RAW!$H$2:$H$99999,ReportProduct!$H35,RAW!$F$2:$F$99999,ReportProduct!$A$1),"") ->  | L35: =IF(SUMIFS(RAW!$C$2:$C$99999,RAW!$H$2:$H$99999,ReportProduct!$K35,RAW!$F$2:$F$99999,ReportProduct!$A$1)<>0,SUMIFS(RAW!$C$2:$C$99999,RAW!$H$2:$H$99999,ReportProduct!$K35,RAW!$F$2:$F$99999,ReportProduct!$A$1),"") -> 
C36: =IFERROR(SUMIFS(RAW!$B$2:$B$99999,RAW!$D$2:$D$99999,ReportProduct!$B36,RAW!$F$2:$F$99999,ReportProduct!$A$1),"") -> 0 | F36: =SUMIFS(RAW!$C$2:$C$99999,RAW!$D$2:$D$99999,ReportProduct!$B36,RAW!$F$2:$F$99999,ReportProduct!$A$1) -> 0 | I36: =IF(SUMIFS(RAW!$B$2:$B$99999,RAW!$H$2:$H$99999,ReportProduct!$H36,RAW!$F$2:$F$99999,ReportProduct!$A$1)<>0,SUMIFS(RAW!$B$2:$B$99999,RAW!$H$2:$H$99999,ReportProduct!$H36,RAW!$F$2:$F$99999,ReportProduct!$A$1),"") ->  | L36: =IF(SUMIFS(RAW!$C$2:$C$99999,RAW!$H$2:$H$99999,ReportProduct!$K36,RAW!$F$2:$F$99999,ReportProduct!$A$1)<>0,SUMIFS(RAW!$C$2:$C$99999,RAW!$H$2:$H$99999,ReportProduct!$K36,RAW!$F$2:$F$99999,ReportProduct!$A$1),"") -> 
C37: =IFERROR(SUMIFS(RAW!$B$2:$B$99999,RAW!$D$2:$D$99999,ReportProduct!$B37,RAW!$F$2:$F$99999,ReportProduct!$A$1),"") -> 0 | F37: =SUMIFS(RAW!$C$2:$C$99999,RAW!$D$2:$D$99999,ReportProduct!$B37,RAW!$F$2:$F$99999,ReportProduct!$A$1) -> 0 | I37: =IF(SUMIFS(RAW!$B$2:$B$99999,RAW!$H$2:$H$99999,ReportProduct!$H37,RAW!$F$2:$F$99999,ReportProduct!$A$1)<>0,SUMIFS(RAW!$B$2:$B$99999,RAW!$H$2:$H$99999,ReportProduct!$H37,RAW!$F$2:$F$99999,ReportProduct!$A$1),"") ->  | L37: =IF(SUMIFS(RAW!$C$2:$C$99999,RAW!$H$2:$H$99999,ReportProduct!$K37,RAW!$F$2:$F$99999,ReportProduct!$A$1)<>0,SUMIFS(RAW!$C$2:$C$99999,RAW!$H$2:$H$99999,ReportProduct!$K37,RAW!$F$2:$F$99999,ReportProduct!$A$1),"") -> 
C38: =IFERROR(SUMIFS(RAW!$B$2:$B$99999,RAW!$D$2:$D$99999,ReportProduct!$B38,RAW!$F$2:$F$99999,ReportProduct!$A$1),"") -> 0 | F38: =SUMIFS(RAW!$C$2:$C$99999,RAW!$D$2:$D$99999,ReportProduct!$B38,RAW!$F$2:$F$99999,ReportProduct!$A$1) -> 0 | I38: =IF(SUMIFS(RAW!$B$2:$B$99999,RAW!$H$2:$H$99999,ReportProduct!$H38,RAW!$F$2:$F$99999,ReportProduct!$A$1)<>0,SUMIFS(RAW!$B$2:$B$99999,RAW!$H$2:$H$99999,ReportProduct!$H38,RAW!$F$2:$F$99999,ReportProduct!$A$1),"") ->  | L38: =IF(SUMIFS(RAW!$C$2:$C$99999,RAW!$H$2:$H$99999,ReportProduct!$K38,RAW!$F$2:$F$99999,ReportProduct!$A$1)<>0,SUMIFS(RAW!$C$2:$C$99999,RAW!$H$2:$H$99999,ReportProduct!$K38,RAW!$F$2:$F$99999,ReportProduct!$A$1),"") -> 
C39: =IFERROR(SUMIFS(RAW!$B$2:$B$99999,RAW!$D$2:$D$99999,ReportProduct!$B39,RAW!$F$2:$F$99999,ReportProduct!$A$1),"") -> 0 | F39: =SUMIFS(RAW!$C$2:$C$99999,RAW!$D$2:$D$99999,ReportProduct!$B39,RAW!$F$2:$F$99999,ReportProduct!$A$1) -> 0 | I39: =IF(SUMIFS(RAW!$B$2:$B$99999,RAW!$H$2:$H$99999,ReportProduct!$H39,RAW!$F$2:$F$99999,ReportProduct!$A$1)<>0,SUMIFS(RAW!$B$2:$B$99999,RAW!$H$2:$H$99999,ReportProduct!$H39,RAW!$F$2:$F$99999,ReportProduct!$A$1),"") ->  | L39: =IF(SUMIFS(RAW!$C$2:$C$99999,RAW!$H$2:$H$99999,ReportProduct!$K39,RAW!$F$2:$F$99999,ReportProduct!$A$1)<>0,SUMIFS(RAW!$C$2:$C$99999,RAW!$H$2:$H$99999,ReportProduct!$K39,RAW!$F$2:$F$99999,ReportProduct!$A$1),"") -> 
C40: =IFERROR(SUMIFS(RAW!$B$2:$B$99999,RAW!$D$2:$D$99999,ReportProduct!$B40,RAW!$F$2:$F$99999,ReportProduct!$A$1),"") -> 0 | F40: =SUMIFS(RAW!$C$2:$C$99999,RAW!$D$2:$D$99999,ReportProduct!$B40,RAW!$F$2:$F$99999,ReportProduct!$A$1) -> 0 | I40: =IF(SUMIFS(RAW!$B$2:$B$99999,RAW!$H$2:$H$99999,ReportProduct!$H40,RAW!$F$2:$F$99999,ReportProduct!$A$1)<>0,SUMIFS(RAW!$B$2:$B$99999,RAW!$H$2:$H$99999,ReportProduct!$H40,RAW!$F$2:$F$99999,ReportProduct!$A$1),"") ->  | L40: =IF(SUMIFS(RAW!$C$2:$C$99999,RAW!$H$2:$H$99999,ReportProduct!$K40,RAW!$F$2:$F$99999,ReportProduct!$A$1)<>0,SUMIFS(RAW!$C$2:$C$99999,RAW!$H$2:$H$99999,ReportProduct!$K40,RAW!$F$2:$F$99999,ReportProduct!$A$1),"") -> 
C41: =IFERROR(SUMIFS(RAW!$B$2:$B$99999,RAW!$D$2:$D$99999,ReportProduct!$B41,RAW!$F$2:$F$99999,ReportProduct!$A$1),"") -> 0 | F41: =SUMIFS(RAW!$C$2:$C$99999,RAW!$D$2:$D$99999,ReportProduct!$B41,RAW!$F$2:$F$99999,ReportProduct!$A$1) -> 0 | I41: =IF(SUMIFS(RAW!$B$2:$B$99999,RAW!$H$2:$H$99999,ReportProduct!$H41,RAW!$F$2:$F$99999,ReportProduct!$A$1)<>0,SUMIFS(RAW!$B$2:$B$99999,RAW!$H$2:$H$99999,ReportProduct!$H41,RAW!$F$2:$F$99999,ReportProduct!$A$1),"") ->  | L41: =IF(SUMIFS(RAW!$C$2:$C$99999,RAW!$H$2:$H$99999,ReportProduct!$K41,RAW!$F$2:$F$99999,ReportProduct!$A$1)<>0,SUMIFS(RAW!$C$2:$C$99999,RAW!$H$2:$H$99999,ReportProduct!$K41,RAW!$F$2:$F$99999,ReportProduct!$A$1),"") -> 
C42: =IFERROR(SUMIFS(RAW!$B$2:$B$99999,RAW!$D$2:$D$99999,ReportProduct!$B42,RAW!$F$2:$F$99999,ReportProduct!$A$1),"") -> 0 | F42: =SUMIFS(RAW!$C$2:$C$99999,RAW!$D$2:$D$99999,ReportProduct!$B42,RAW!$F$2:$F$99999,ReportProduct!$A$1) -> 0 | I42: =IF(SUMIFS(RAW!$B$2:$B$99999,RAW!$H$2:$H$99999,ReportProduct!$H42,RAW!$F$2:$F$99999,ReportProduct!$A$1)<>0,SUMIFS(RAW!$B$2:$B$99999,RAW!$H$2:$H$99999,ReportProduct!$H42,RAW!$F$2:$F$99999,ReportProduct!$A$1),"") ->  | L42: =IF(SUMIFS(RAW!$C$2:$C$99999,RAW!$H$2:$H$99999,ReportProduct!$K42,RAW!$F$2:$F$99999,ReportProduct!$A$1)<>0,SUMIFS(RAW!$C$2:$C$99999,RAW!$H$2:$H$99999,ReportProduct!$K42,RAW!$F$2:$F$99999,ReportProduct!$A$1),"") -> 
C43: =IFERROR(SUMIFS(RAW!$B$2:$B$99999,RAW!$D$2:$D$99999,ReportProduct!$B43,RAW!$F$2:$F$99999,ReportProduct!$A$1),"") -> 0 | F43: =SUMIFS(RAW!$C$2:$C$99999,RAW!$D$2:$D$99999,ReportProduct!$B43,RAW!$F$2:$F$99999,ReportProduct!$A$1) -> 0 | I43: =IF(SUMIFS(RAW!$B$2:$B$99999,RAW!$H$2:$H$99999,ReportProduct!$H43,RAW!$F$2:$F$99999,ReportProduct!$A$1)<>0,SUMIFS(RAW!$B$2:$B$99999,RAW!$H$2:$H$99999,ReportProduct!$H43,RAW!$F$2:$F$99999,ReportProduct!$A$1),"") ->  | L43: =IF(SUMIFS(RAW!$C$2:$C$99999,RAW!$H$2:$H$99999,ReportProduct!$K43,RAW!$F$2:$F$99999,ReportProduct!$A$1)<>0,SUMIFS(RAW!$C$2:$C$99999,RAW!$H$2:$H$99999,ReportProduct!$K43,RAW!$F$2:$F$99999,ReportProduct!$A$1),"") -> 
C44: =IFERROR(SUMIFS(RAW!$B$2:$B$99999,RAW!$D$2:$D$99999,ReportProduct!$B44,RAW!$F$2:$F$99999,ReportProduct!$A$1),"") -> 0 | F44: =SUMIFS(RAW!$C$2:$C$99999,RAW!$D$2:$D$99999,ReportProduct!$B44,RAW!$F$2:$F$99999,ReportProduct!$A$1) -> 0 | I44: =IF(SUMIFS(RAW!$B$2:$B$99999,RAW!$H$2:$H$99999,ReportProduct!$H44,RAW!$F$2:$F$99999,ReportProduct!$A$1)<>0,SUMIFS(RAW!$B$2:$B$99999,RAW!$H$2:$H$99999,ReportProduct!$H44,RAW!$F$2:$F$99999,ReportProduct!$A$1),"") ->  | L44: =IF(SUMIFS(RAW!$C$2:$C$99999,RAW!$H$2:$H$99999,ReportProduct!$K44,RAW!$F$2:$F$99999,ReportProduct!$A$1)<>0,SUMIFS(RAW!$C$2:$C$99999,RAW!$H$2:$H$99999,ReportProduct!$K44,RAW!$F$2:$F$99999,ReportProduct!$A$1),"") -> 
C45: =IFERROR(SUMIFS(RAW!$B$2:$B$99999,RAW!$D$2:$D$99999,ReportProduct!$B45,RAW!$F$2:$F$99999,ReportProduct!$A$1),"") -> 0 | F45: =SUMIFS(RAW!$C$2:$C$99999,RAW!$D$2:$D$99999,ReportProduct!$B45,RAW!$F$2:$F$99999,ReportProduct!$A$1) -> 0 | I45: =IF(SUMIFS(RAW!$B$2:$B$99999,RAW!$H$2:$H$99999,ReportProduct!$H45,RAW!$F$2:$F$99999,ReportProduct!$A$1)<>0,SUMIFS(RAW!$B$2:$B$99999,RAW!$H$2:$H$99999,ReportProduct!$H45,RAW!$F$2:$F$99999,ReportProduct!$A$1),"") ->  | L45: =IF(SUMIFS(RAW!$C$2:$C$99999,RAW!$H$2:$H$99999,ReportProduct!$K45,RAW!$F$2:$F$99999,ReportProduct!$A$1)<>0,SUMIFS(RAW!$C$2:$C$99999,RAW!$H$2:$H$99999,ReportProduct!$K45,RAW!$F$2:$F$99999,ReportProduct!$A$1),"") -> 
C46: =IFERROR(SUMIFS(RAW!$B$2:$B$99999,RAW!$D$2:$D$99999,ReportProduct!$B46,RAW!$F$2:$F$99999,ReportProduct!$A$1),"") -> 0 | F46: =SUMIFS(RAW!$C$2:$C$99999,RAW!$D$2:$D$99999,ReportProduct!$B46,RAW!$F$2:$F$99999,ReportProduct!$A$1) -> 0 | I46: =IF(SUMIFS(RAW!$B$2:$B$99999,RAW!$H$2:$H$99999,ReportProduct!$H46,RAW!$F$2:$F$99999,ReportProduct!$A$1)<>0,SUMIFS(RAW!$B$2:$B$99999,RAW!$H$2:$H$99999,ReportProduct!$H46,RAW!$F$2:$F$99999,ReportProduct!$A$1),"") ->  | L46: =IF(SUMIFS(RAW!$C$2:$C$99999,RAW!$H$2:$H$99999,ReportProduct!$K46,RAW!$F$2:$F$99999,ReportProduct!$A$1)<>0,SUMIFS(RAW!$C$2:$C$99999,RAW!$H$2:$H$99999,ReportProduct!$K46,RAW!$F$2:$F$99999,ReportProduct!$A$1),"") -> 
C47: =IFERROR(SUMIFS(RAW!$B$2:$B$99999,RAW!$D$2:$D$99999,ReportProduct!$B47,RAW!$F$2:$F$99999,ReportProduct!$A$1),"") -> 0 | F47: =SUMIFS(RAW!$C$2:$C$99999,RAW!$D$2:$D$99999,ReportProduct!$B47,RAW!$F$2:$F$99999,ReportProduct!$A$1) -> 0 | I47: =IF(SUMIFS(RAW!$B$2:$B$99999,RAW!$H$2:$H$99999,ReportProduct!$H47,RAW!$F$2:$F$99999,ReportProduct!$A$1)<>0,SUMIFS(RAW!$B$2:$B$99999,RAW!$H$2:$H$99999,ReportProduct!$H47,RAW!$F$2:$F$99999,ReportProduct!$A$1),"") ->  | L47: =IF(SUMIFS(RAW!$C$2:$C$99999,RAW!$H$2:$H$99999,ReportProduct!$K47,RAW!$F$2:$F$99999,ReportProduct!$A$1)<>0,SUMIFS(RAW!$C$2:$C$99999,RAW!$H$2:$H$99999,ReportProduct!$K47,RAW!$F$2:$F$99999,ReportProduct!$A$1),"") -> 
C48: =IFERROR(SUMIFS(RAW!$B$2:$B$99999,RAW!$D$2:$D$99999,ReportProduct!$B48,RAW!$F$2:$F$99999,ReportProduct!$A$1),"") -> 0 | F48: =SUMIFS(RAW!$C$2:$C$99999,RAW!$D$2:$D$99999,ReportProduct!$B48,RAW!$F$2:$F$99999,ReportProduct!$A$1) -> 0 | I48: =IF(SUMIFS(RAW!$B$2:$B$99999,RAW!$H$2:$H$99999,ReportProduct!$H48,RAW!$F$2:$F$99999,ReportProduct!$A$1)<>0,SUMIFS(RAW!$B$2:$B$99999,RAW!$H$2:$H$99999,ReportProduct!$H48,RAW!$F$2:$F$99999,ReportProduct!$A$1),"") ->  | L48: =IF(SUMIFS(RAW!$C$2:$C$99999,RAW!$H$2:$H$99999,ReportProduct!$K48,RAW!$F$2:$F$99999,ReportProduct!$A$1)<>0,SUMIFS(RAW!$C$2:$C$99999,RAW!$H$2:$H$99999,ReportProduct!$K48,RAW!$F$2:$F$99999,ReportProduct!$A$1),"") -> 
C49: =IFERROR(SUMIFS(RAW!$B$2:$B$99999,RAW!$D$2:$D$99999,ReportProduct!$B49,RAW!$F$2:$F$99999,ReportProduct!$A$1),"") -> 0 | F49: =SUMIFS(RAW!$C$2:$C$99999,RAW!$D$2:$D$99999,ReportProduct!$B49,RAW!$F$2:$F$99999,ReportProduct!$A$1) -> 0 | I49: =IF(SUMIFS(RAW!$B$2:$B$99999,RAW!$H$2:$H$99999,ReportProduct!$H49,RAW!$F$2:$F$99999,ReportProduct!$A$1)<>0,SUMIFS(RAW!$B$2:$B$99999,RAW!$H$2:$H$99999,ReportProduct!$H49,RAW!$F$2:$F$99999,ReportProduct!$A$1),"") ->  | L49: =IF(SUMIFS(RAW!$C$2:$C$99999,RAW!$H$2:$H$99999,ReportProduct!$K49,RAW!$F$2:$F$99999,ReportProduct!$A$1)<>0,SUMIFS(RAW!$C$2:$C$99999,RAW!$H$2:$H$99999,ReportProduct!$K49,RAW!$F$2:$F$99999,ReportProduct!$A$1),"") -> 
C50: =IFERROR(SUMIFS(RAW!$B$2:$B$99999,RAW!$D$2:$D$99999,ReportProduct!$B50,RAW!$F$2:$F$99999,ReportProduct!$A$1),"") -> 0 | F50: =SUMIFS(RAW!$C$2:$C$99999,RAW!$D$2:$D$99999,ReportProduct!$B50,RAW!$F$2:$F$99999,ReportProduct!$A$1) -> 0 | I50: =IF(SUMIFS(RAW!$B$2:$B$99999,RAW!$H$2:$H$99999,ReportProduct!$H50,RAW!$F$2:$F$99999,ReportProduct!$A$1)<>0,SUMIFS(RAW!$B$2:$B$99999,RAW!$H$2:$H$99999,ReportProduct!$H50,RAW!$F$2:$F$99999,ReportProduct!$A$1),"") ->  | L50: =IF(SUMIFS(RAW!$C$2:$C$99999,RAW!$H$2:$H$99999,ReportProduct!$K50,RAW!$F$2:$F$99999,ReportProduct!$A$1)<>0,SUMIFS(RAW!$C$2:$C$99999,RAW!$H$2:$H$99999,ReportProduct!$K50,RAW!$F$2:$F$99999,ReportProduct!$A$1),"") -> 
C51: =IFERROR(SUMIFS(RAW!$B$2:$B$99999,RAW!$D$2:$D$99999,ReportProduct!$B51,RAW!$F$2:$F$99999,ReportProduct!$A$1),"") -> 0 | F51: =SUMIFS(RAW!$C$2:$C$99999,RAW!$D$2:$D$99999,ReportProduct!$B51,RAW!$F$2:$F$99999,ReportProduct!$A$1) -> 0 | I51: =IF(SUMIFS(RAW!$B$2:$B$99999,RAW!$H$2:$H$99999,ReportProduct!$H51,RAW!$F$2:$F$99999,ReportProduct!$A$1)<>0,SUMIFS(RAW!$B$2:$B$99999,RAW!$H$2:$H$99999,ReportProduct!$H51,RAW!$F$2:$F$99999,ReportProduct!$A$1),"") ->  | L51: =IF(SUMIFS(RAW!$C$2:$C$99999,RAW!$H$2:$H$99999,ReportProduct!$K51,RAW!$F$2:$F$99999,ReportProduct!$A$1)<>0,SUMIFS(RAW!$C$2:$C$99999,RAW!$H$2:$H$99999,ReportProduct!$K51,RAW!$F$2:$F$99999,ReportProduct!$A$1),"") -> 
C52: =IFERROR(SUMIFS(RAW!$B$2:$B$99999,RAW!$D$2:$D$99999,ReportProduct!$B52,RAW!$F$2:$F$99999,ReportProduct!$A$1),"") -> 0 | F52: =SUMIFS(RAW!$C$2:$C$99999,RAW!$D$2:$D$99999,ReportProduct!$B52,RAW!$F$2:$F$99999,ReportProduct!$A$1) -> 0 | I52: =IF(SUMIFS(RAW!$B$2:$B$99999,RAW!$H$2:$H$99999,ReportProduct!$H52,RAW!$F$2:$F$99999,ReportProduct!$A$1)<>0,SUMIFS(RAW!$B$2:$B$99999,RAW!$H$2:$H$99999,ReportProduct!$H52,RAW!$F$2:$F$99999,ReportProduct!$A$1),"") ->  | L52: =IF(SUMIFS(RAW!$C$2:$C$99999,RAW!$H$2:$H$99999,ReportProduct!$K52,RAW!$F$2:$F$99999,ReportProduct!$A$1)<>0,SUMIFS(RAW!$C$2:$C$99999,RAW!$H$2:$H$99999,ReportProduct!$K52,RAW!$F$2:$F$99999,ReportProduct!$A$1),"") -> 
C53: =IFERROR(SUMIFS(RAW!$B$2:$B$99999,RAW!$D$2:$D$99999,ReportProduct!$B53,RAW!$F$2:$F$99999,ReportProduct!$A$1),"") -> 0 | F53: =SUMIFS(RAW!$C$2:$C$99999,RAW!$D$2:$D$99999,ReportProduct!$B53,RAW!$F$2:$F$99999,ReportProduct!$A$1) -> 0 | I53: =IF(SUMIFS(RAW!$B$2:$B$99999,RAW!$H$2:$H$99999,ReportProduct!$H53,RAW!$F$2:$F$99999,ReportProduct!$A$1)<>0,SUMIFS(RAW!$B$2:$B$99999,RAW!$H$2:$H$99999,ReportProduct!$H53,RAW!$F$2:$F$99999,ReportProduct!$A$1),"") ->  | L53: =IF(SUMIFS(RAW!$C$2:$C$99999,RAW!$H$2:$H$99999,ReportProduct!$K53,RAW!$F$2:$F$99999,ReportProduct!$A$1)<>0,SUMIFS(RAW!$C$2:$C$99999,RAW!$H$2:$H$99999,ReportProduct!$K53,RAW!$F$2:$F$99999,ReportProduct!$A$1),"") -> 
C54: =IFERROR(SUMIFS(RAW!$B$2:$B$99999,RAW!$D$2:$D$99999,ReportProduct!$B54,RAW!$F$2:$F$99999,ReportProduct!$A$1),"") -> 0 | F54: =SUMIFS(RAW!$C$2:$C$99999,RAW!$D$2:$D$99999,ReportProduct!$B54,RAW!$F$2:$F$99999,ReportProduct!$A$1) -> 0 | I54: =IF(SUMIFS(RAW!$B$2:$B$99999,RAW!$H$2:$H$99999,ReportProduct!$H54,RAW!$F$2:$F$99999,ReportProduct!$A$1)<>0,SUMIFS(RAW!$B$2:$B$99999,RAW!$H$2:$H$99999,ReportProduct!$H54,RAW!$F$2:$F$99999,ReportProduct!$A$1),"") ->  | L54: =IF(SUMIFS(RAW!$C$2:$C$99999,RAW!$H$2:$H$99999,ReportProduct!$K54,RAW!$F$2:$F$99999,ReportProduct!$A$1)<>0,SUMIFS(RAW!$C$2:$C$99999,RAW!$H$2:$H$99999,ReportProduct!$K54,RAW!$F$2:$F$99999,ReportProduct!$A$1),"") -> 
C55: =IFERROR(SUMIFS(RAW!$B$2:$B$99999,RAW!$D$2:$D$99999,ReportProduct!$B55,RAW!$F$2:$F$99999,ReportProduct!$A$1),"") -> 0 | F55: =SUMIFS(RAW!$C$2:$C$99999,RAW!$D$2:$D$99999,ReportProduct!$B55,RAW!$F$2:$F$99999,ReportProduct!$A$1) -> 0 | I55: =IF(SUMIFS(RAW!$B$2:$B$99999,RAW!$H$2:$H$99999,ReportProduct!$H55,RAW!$F$2:$F$99999,ReportProduct!$A$1)<>0,SUMIFS(RAW!$B$2:$B$99999,RAW!$H$2:$H$99999,ReportProduct!$H55,RAW!$F$2:$F$99999,ReportProduct!$A$1),"") ->  | L55: =IF(SUMIFS(RAW!$C$2:$C$99999,RAW!$H$2:$H$99999,ReportProduct!$K55,RAW!$F$2:$F$99999,ReportProduct!$A$1)<>0,SUMIFS(RAW!$C$2:$C$99999,RAW!$H$2:$H$99999,ReportProduct!$K55,RAW!$F$2:$F$99999,ReportProduct!$A$1),"") -> 
C56: =IFERROR(SUMIFS(RAW!$B$2:$B$99999,RAW!$D$2:$D$99999,ReportProduct!$B56,RAW!$F$2:$F$99999,ReportProduct!$A$1),"") -> 0 | F56: =SUMIFS(RAW!$C$2:$C$99999,RAW!$D$2:$D$99999,ReportProduct!$B56,RAW!$F$2:$F$99999,ReportProduct!$A$1) -> 0 | I56: =IF(SUMIFS(RAW!$B$2:$B$99999,RAW!$H$2:$H$99999,ReportProduct!$H56,RAW!$F$2:$F$99999,ReportProduct!$A$1)<>0,SUMIFS(RAW!$B$2:$B$99999,RAW!$H$2:$H$99999,ReportProduct!$H56,RAW!$F$2:$F$99999,ReportProduct!$A$1),"") ->  | L56: =IF(SUMIFS(RAW!$C$2:$C$99999,RAW!$H$2:$H$99999,ReportProduct!$K56,RAW!$F$2:$F$99999,ReportProduct!$A$1)<>0,SUMIFS(RAW!$C$2:$C$99999,RAW!$H$2:$H$99999,ReportProduct!$K56,RAW!$F$2:$F$99999,ReportProduct!$A$1),"") -> 
C57: =IFERROR(SUMIFS(RAW!$B$2:$B$99999,RAW!$D$2:$D$99999,ReportProduct!$B57,RAW!$F$2:$F$99999,ReportProduct!$A$1),"") -> 0 | F57: =SUMIFS(RAW!$C$2:$C$99999,RAW!$D$2:$D$99999,ReportProduct!$B57,RAW!$F$2:$F$99999,ReportProduct!$A$1) -> 0 | I57: =IF(SUMIFS(RAW!$B$2:$B$99999,RAW!$H$2:$H$99999,ReportProduct!$H57,RAW!$F$2:$F$99999,ReportProduct!$A$1)<>0,SUMIFS(RAW!$B$2:$B$99999,RAW!$H$2:$H$99999,ReportProduct!$H57,RAW!$F$2:$F$99999,ReportProduct!$A$1),"") ->  | L57: =IF(SUMIFS(RAW!$C$2:$C$99999,RAW!$H$2:$H$99999,ReportProduct!$K57,RAW!$F$2:$F$99999,ReportProduct!$A$1)<>0,SUMIFS(RAW!$C$2:$C$99999,RAW!$H$2:$H$99999,ReportProduct!$K57,RAW!$F$2:$F$99999,ReportProduct!$A$1),"") -> 
C58: =IFERROR(SUMIFS(RAW!$B$2:$B$99999,RAW!$D$2:$D$99999,ReportProduct!$B58,RAW!$F$2:$F$99999,ReportProduct!$A$1),"") -> 0 | F58: =SUMIFS(RAW!$C$2:$C$99999,RAW!$D$2:$D$99999,ReportProduct!$B58,RAW!$F$2:$F$99999,ReportProduct!$A$1) -> 0 | I58: =IF(SUMIFS(RAW!$B$2:$B$99999,RAW!$H$2:$H$99999,ReportProduct!$H58,RAW!$F$2:$F$99999,ReportProduct!$A$1)<>0,SUMIFS(RAW!$B$2:$B$99999,RAW!$H$2:$H$99999,ReportProduct!$H58,RAW!$F$2:$F$99999,ReportProduct!$A$1),"") ->  | L58: =IF(SUMIFS(RAW!$C$2:$C$99999,RAW!$H$2:$H$99999,ReportProduct!$K58,RAW!$F$2:$F$99999,ReportProduct!$A$1)<>0,SUMIFS(RAW!$C$2:$C$99999,RAW!$H$2:$H$99999,ReportProduct!$K58,RAW!$F$2:$F$99999,ReportProduct!$A$1),"") -> 
C59: =IFERROR(SUMIFS(RAW!$B$2:$B$99999,RAW!$D$2:$D$99999,ReportProduct!$B59,RAW!$F$2:$F$99999,ReportProduct!$A$1),"") -> 0 | F59: =SUMIFS(RAW!$C$2:$C$99999,RAW!$D$2:$D$99999,ReportProduct!$B59,RAW!$F$2:$F$99999,ReportProduct!$A$1) -> 0 | I59: =IF(SUMIFS(RAW!$B$2:$B$99999,RAW!$H$2:$H$99999,ReportProduct!$H59,RAW!$F$2:$F$99999,ReportProduct!$A$1)<>0,SUMIFS(RAW!$B$2:$B$99999,RAW!$H$2:$H$99999,ReportProduct!$H59,RAW!$F$2:$F$99999,ReportProduct!$A$1),"") ->  | L59: =IF(SUMIFS(RAW!$C$2:$C$99999,RAW!$H$2:$H$99999,ReportProduct!$K59,RAW!$F$2:$F$99999,ReportProduct!$A$1)<>0,SUMIFS(RAW!$C$2:$C$99999,RAW!$H$2:$H$99999,ReportProduct!$K59,RAW!$F$2:$F$99999,ReportProduct!$A$1),"") -> 
C60: =IFERROR(SUMIFS(RAW!$B$2:$B$99999,RAW!$D$2:$D$99999,ReportProduct!$B60,RAW!$F$2:$F$99999,ReportProduct!$A$1),"") -> 0 | F60: =SUMIFS(RAW!$C$2:$C$99999,RAW!$D$2:$D$99999,ReportProduct!$B60,RAW!$F$2:$F$99999,ReportProduct!$A$1) -> 0 | I60: =IF(SUMIFS(RAW!$B$2:$B$99999,RAW!$H$2:$H$99999,ReportProduct!$H60,RAW!$F$2:$F$99999,ReportProduct!$A$1)<>0,SUMIFS(RAW!$B$2:$B$99999,RAW!$H$2:$H$99999,ReportProduct!$H60,RAW!$F$2:$F$99999,ReportProduct!$A$1),"") ->  | L60: =IF(SUMIFS(RAW!$C$2:$C$99999,RAW!$H$2:$H$99999,ReportProduct!$K60,RAW!$F$2:$F$99999,ReportProduct!$A$1)<>0,SUMIFS(RAW!$C$2:$C$99999,RAW!$H$2:$H$99999,ReportProduct!$K60,RAW!$F$2:$F$99999,ReportProduct!$A$1),"") -> 
C61: =IFERROR(SUMIFS(RAW!$B$2:$B$99999,RAW!$D$2:$D$99999,ReportProduct!$B61,RAW!$F$2:$F$99999,ReportProduct!$A$1),"") -> 0 | F61: =SUMIFS(RAW!$C$2:$C$99999,RAW!$D$2:$D$99999,ReportProduct!$B61,RAW!$F$2:$F$99999,ReportProduct!$A$1) -> 0 | I61: =IF(SUMIFS(RAW!$B$2:$B$99999,RAW!$H$2:$H$99999,ReportProduct!$H61,RAW!$F$2:$F$99999,ReportProduct!$A$1)<>0,SUMIFS(RAW!$B$2:$B$99999,RAW!$H$2:$H$99999,ReportProduct!$H61,RAW!$F$2:$F$99999,ReportProduct!$A$1),"") ->  | L61: =IF(SUMIFS(RAW!$C$2:$C$99999,RAW!$H$2:$H$99999,ReportProduct!$K61,RAW!$F$2:$F$99999,ReportProduct!$A$1)<>0,SUMIFS(RAW!$C$2:$C$99999,RAW!$H$2:$H$99999,ReportProduct!$K61,RAW!$F$2:$F$99999,ReportProduct!$A$1),"") -> 
C62: =IFERROR(SUMIFS(RAW!$B$2:$B$99999,RAW!$D$2:$D$99999,ReportProduct!$B62,RAW!$F$2:$F$99999,ReportProduct!$A$1),"") -> 0 | F62: =SUMIFS(RAW!$C$2:$C$99999,RAW!$D$2:$D$99999,ReportProduct!$B62,RAW!$F$2:$F$99999,ReportProduct!$A$1) -> 0 | I62: =IF(SUMIFS(RAW!$B$2:$B$99999,RAW!$H$2:$H$99999,ReportProduct!$H62,RAW!$F$2:$F$99999,ReportProduct!$A$1)<>0,SUMIFS(RAW!$B$2:$B$99999,RAW!$H$2:$H$99999,ReportProduct!$H62,RAW!$F$2:$F$99999,ReportProduct!$A$1),"") ->  | L62: =IF(SUMIFS(RAW!$C$2:$C$99999,RAW!$H$2:$H$99999,ReportProduct!$K62,RAW!$F$2:$F$99999,ReportProduct!$A$1)<>0,SUMIFS(RAW!$C$2:$C$99999,RAW!$H$2:$H$99999,ReportProduct!$K62,RAW!$F$2:$F$99999,ReportProduct!$A$1),"") -> 
C63: =IFERROR(SUMIFS(RAW!$B$2:$B$99999,RAW!$D$2:$D$99999,ReportProduct!$B63,RAW!$F$2:$F$99999,ReportProduct!$A$1),"") -> 0 | F63: =SUMIFS(RAW!$C$2:$C$99999,RAW!$D$2:$D$99999,ReportProduct!$B63,RAW!$F$2:$F$99999,ReportProduct!$A$1) -> 0 | I63: =IF(SUMIFS(RAW!$B$2:$B$99999,RAW!$H$2:$H$99999,ReportProduct!$H63,RAW!$F$2:$F$99999,ReportProduct!$A$1)<>0,SUMIFS(RAW!$B$2:$B$99999,RAW!$H$2:$H$99999,ReportProduct!$H63,RAW!$F$2:$F$99999,ReportProduct!$A$1),"") ->  | L63: =IF(SUMIFS(RAW!$C$2:$C$99999,RAW!$H$2:$H$99999,ReportProduct!$K63,RAW!$F$2:$F$99999,ReportProduct!$A$1)<>0,SUMIFS(RAW!$C$2:$C$99999,RAW!$H$2:$H$99999,ReportProduct!$K63,RAW!$F$2:$F$99999,ReportProduct!$A$1),"") -> 
C64: =IFERROR(SUMIFS(RAW!$B$2:$B$99999,RAW!$D$2:$D$99999,ReportProduct!$B64,RAW!$F$2:$F$99999,ReportProduct!$A$1),"") -> 0 | F64: =SUMIFS(RAW!$C$2:$C$99999,RAW!$D$2:$D$99999,ReportProduct!$B64,RAW!$F$2:$F$99999,ReportProduct!$A$1) -> 0 | I64: =IF(SUMIFS(RAW!$B$2:$B$99999,RAW!$H$2:$H$99999,ReportProduct!$H64,RAW!$F$2:$F$99999,ReportProduct!$A$1)<>0,SUMIFS(RAW!$B$2:$B$99999,RAW!$H$2:$H$99999,ReportProduct!$H64,RAW!$F$2:$F$99999,ReportProduct!$A$1),"") ->  | L64: =IF(SUMIFS(RAW!$C$2:$C$99999,RAW!$H$2:$H$99999,ReportProduct!$K64,RAW!$F$2:$F$99999,ReportProduct!$A$1)<>0,SUMIFS(RAW!$C$2:$C$99999,RAW!$H$2:$H$99999,ReportProduct!$K64,RAW!$F$2:$F$99999,ReportProduct!$A$1),"") -> 
C65: =IFERROR(SUMIFS(RAW!$B$2:$B$99999,RAW!$D$2:$D$99999,ReportProduct!$B65,RAW!$F$2:$F$99999,ReportProduct!$A$1),"") -> 0 | F65: =SUMIFS(RAW!$C$2:$C$99999,RAW!$D$2:$D$99999,ReportProduct!$B65,RAW!$F$2:$F$99999,ReportProduct!$A$1) -> 0 | I65: =IF(SUMIFS(RAW!$B$2:$B$99999,RAW!$H$2:$H$99999,ReportProduct!$H65,RAW!$F$2:$F$99999,ReportProduct!$A$1)<>0,SUMIFS(RAW!$B$2:$B$99999,RAW!$H$2:$H$99999,ReportProduct!$H65,RAW!$F$2:$F$99999,ReportProduct!$A$1),"") ->  | L65: =IF(SUMIFS(RAW!$C$2:$C$99999,RAW!$H$2:$H$99999,ReportProduct!$K65,RAW!$F$2:$F$99999,ReportProduct!$A$1)<>0,SUMIFS(RAW!$C$2:$C$99999,RAW!$H$2:$H$99999,ReportProduct!$K65,RAW!$F$2:$F$99999,ReportProduct!$A$1),"") -> 
C66: =IFERROR(SUMIFS(RAW!$B$2:$B$99999,RAW!$D$2:$D$99999,ReportProduct!$B66,RAW!$F$2:$F$99999,ReportProduct!$A$1),"") -> 0 | F66: =SUMIFS(RAW!$C$2:$C$99999,RAW!$D$2:$D$99999,ReportProduct!$B66,RAW!$F$2:$F$99999,ReportProduct!$A$1) -> 0 | I66: =IF(SUMIFS(RAW!$B$2:$B$99999,RAW!$H$2:$H$99999,ReportProduct!$H66,RAW!$F$2:$F$99999,ReportProduct!$A$1)<>0,SUMIFS(RAW!$B$2:$B$99999,RAW!$H$2:$H$99999,ReportProduct!$H66,RAW!$F$2:$F$99999,ReportProduct!$A$1),"") ->  | L66: =IF(SUMIFS(RAW!$C$2:$C$99999,RAW!$H$2:$H$99999,ReportProduct!$K66,RAW!$F$2:$F$99999,ReportProduct!$A$1)<>0,SUMIFS(RAW!$C$2:$C$99999,RAW!$H$2:$H$99999,ReportProduct!$K66,RAW!$F$2:$F$99999,ReportProduct!$A$1),"") -> 
C67: =IFERROR(SUMIFS(RAW!$B$2:$B$99999,RAW!$D$2:$D$99999,ReportProduct!$B67,RAW!$F$2:$F$99999,ReportProduct!$A$1),"") -> 0 | F67: =SUMIFS(RAW!$C$2:$C$99999,RAW!$D$2:$D$99999,ReportProduct!$B67,RAW!$F$2:$F$99999,ReportProduct!$A$1) -> 0 | I67: =IF(SUMIFS(RAW!$B$2:$B$99999,RAW!$H$2:$H$99999,ReportProduct!$H67,RAW!$F$2:$F$99999,ReportProduct!$A$1)<>0,SUMIFS(RAW!$B$2:$B$99999,RAW!$H$2:$H$99999,ReportProduct!$H67,RAW!$F$2:$F$99999,ReportProduct!$A$1),"") ->  | L67: =IF(SUMIFS(RAW!$C$2:$C$99999,RAW!$H$2:$H$99999,ReportProduct!$K67,RAW!$F$2:$F$99999,ReportProduct!$A$1)<>0,SUMIFS(RAW!$C$2:$C$99999,RAW!$H$2:$H$99999,ReportProduct!$K67,RAW!$F$2:$F$99999,ReportProduct!$A$1),"") -> 
C68: =IFERROR(SUMIFS(RAW!$B$2:$B$99999,RAW!$D$2:$D$99999,ReportProduct!$B68,RAW!$F$2:$F$99999,ReportProduct!$A$1),"") -> 0 | F68: =SUMIFS(RAW!$C$2:$C$99999,RAW!$D$2:$D$99999,ReportProduct!$B68,RAW!$F$2:$F$99999,ReportProduct!$A$1) -> 0 | I68: =IF(SUMIFS(RAW!$B$2:$B$99999,RAW!$H$2:$H$99999,ReportProduct!$H68,RAW!$F$2:$F$99999,ReportProduct!$A$1)<>0,SUMIFS(RAW!$B$2:$B$99999,RAW!$H$2:$H$99999,ReportProduct!$H68,RAW!$F$2:$F$99999,ReportProduct!$A$1),"") ->  | L68: =IF(SUMIFS(RAW!$C$2:$C$99999,RAW!$H$2:$H$99999,ReportProduct!$K68,RAW!$F$2:$F$99999,ReportProduct!$A$1)<>0,SUMIFS(RAW!$C$2:$C$99999,RAW!$H$2:$H$99999,ReportProduct!$K68,RAW!$F$2:$F$99999,ReportProduct!$A$1),"") -> 
C69: =IFERROR(SUMIFS(RAW!$B$2:$B$99999,RAW!$D$2:$D$99999,ReportProduct!$B69,RAW!$F$2:$F$99999,ReportProduct!$A$1),"") -> 0 | F69: =SUMIFS(RAW!$C$2:$C$99999,RAW!$D$2:$D$99999,ReportProduct!$B69,RAW!$F$2:$F$99999,ReportProduct!$A$1) -> 0 | I69: =IF(SUMIFS(RAW!$B$2:$B$99999,RAW!$H$2:$H$99999,ReportProduct!$H69,RAW!$F$2:$F$99999,ReportProduct!$A$1)<>0,SUMIFS(RAW!$B$2:$B$99999,RAW!$H$2:$H$99999,ReportProduct!$H69,RAW!$F$2:$F$99999,ReportProduct!$A$1),"") ->  | L69: =IF(SUMIFS(RAW!$C$2:$C$99999,RAW!$H$2:$H$99999,ReportProduct!$K69,RAW!$F$2:$F$99999,ReportProduct!$A$1)<>0,SUMIFS(RAW!$C$2:$C$99999,RAW!$H$2:$H$99999,ReportProduct!$K69,RAW!$F$2:$F$99999,ReportProduct!$A$1),"") -> 
C70: =IFERROR(SUMIFS(RAW!$B$2:$B$99999,RAW!$D$2:$D$99999,ReportProduct!$B70,RAW!$F$2:$F$99999,ReportProduct!$A$1),"") -> 0 | F70: =SUMIFS(RAW!$C$2:$C$99999,RAW!$D$2:$D$99999,ReportProduct!$B70,RAW!$F$2:$F$99999,ReportProduct!$A$1) -> 0 | I70: =IF(SUMIFS(RAW!$B$2:$B$99999,RAW!$H$2:$H$99999,ReportProduct!$H70,RAW!$F$2:$F$99999,ReportProduct!$A$1)<>0,SUMIFS(RAW!$B$2:$B$99999,RAW!$H$2:$H$99999,ReportProduct!$H70,RAW!$F$2:$F$99999,ReportProduct!$A$1),"") ->  | L70: =IF(SUMIFS(RAW!$C$2:$C$99999,RAW!$H$2:$H$99999,ReportProduct!$K70,RAW!$F$2:$F$99999,ReportProduct!$A$1)<>0,SUMIFS(RAW!$C$2:$C$99999,RAW!$H$2:$H$99999,ReportProduct!$K70,RAW!$F$2:$F$99999,ReportProduct!$A$1),"") -> 
C71: =IFERROR(SUMIFS(RAW!$B$2:$B$99999,RAW!$D$2:$D$99999,ReportProduct!$B71,RAW!$F$2:$F$99999,ReportProduct!$A$1),"") -> 0 | F71: =SUMIFS(RAW!$C$2:$C$99999,RAW!$D$2:$D$99999,ReportProduct!$B71,RAW!$F$2:$F$99999,ReportProduct!$A$1) -> 0 | I71: =IF(SUMIFS(RAW!$B$2:$B$99999,RAW!$H$2:$H$99999,ReportProduct!$H71,RAW!$F$2:$F$99999,ReportProduct!$A$1)<>0,SUMIFS(RAW!$B$2:$B$99999,RAW!$H$2:$H$99999,ReportProduct!$H71,RAW!$F$2:$F$99999,ReportProduct!$A$1),"") ->  | L71: =IF(SUMIFS(RAW!$C$2:$C$99999,RAW!$H$2:$H$99999,ReportProduct!$K71,RAW!$F$2:$F$99999,ReportProduct!$A$1)<>0,SUMIFS(RAW!$C$2:$C$99999,RAW!$H$2:$H$99999,ReportProduct!$K71,RAW!$F$2:$F$99999,ReportProduct!$A$1),"") -> 
C72: =IFERROR(SUMIFS(RAW!$B$2:$B$99999,RAW!$D$2:$D$99999,ReportProduct!$B72,RAW!$F$2:$F$99999,ReportProduct!$A$1),"") -> 0 | F72: =SUMIFS(RAW!$C$2:$C$99999,RAW!$D$2:$D$99999,ReportProduct!$B72,RAW!$F$2:$F$99999,ReportProduct!$A$1) -> 0 | I72: =IF(SUMIFS(RAW!$B$2:$B$99999,RAW!$H$2:$H$99999,ReportProduct!$H72,RAW!$F$2:$F$99999,ReportProduct!$A$1)<>0,SUMIFS(RAW!$B$2:$B$99999,RAW!$H$2:$H$99999,ReportProduct!$H72,RAW!$F$2:$F$99999,ReportProduct!$A$1),"") ->  | L72: =IF(SUMIFS(RAW!$C$2:$C$99999,RAW!$H$2:$H$99999,ReportProduct!$K72,RAW!$F$2:$F$99999,ReportProduct!$A$1)<>0,SUMIFS(RAW!$C$2:$C$99999,RAW!$H$2:$H$99999,ReportProduct!$K72,RAW!$F$2:$F$99999,ReportProduct!$A$1),"") -> 
C73: =IFERROR(SUMIFS(RAW!$B$2:$B$99999,RAW!$D$2:$D$99999,ReportProduct!$B73,RAW!$F$2:$F$99999,ReportProduct!$A$1),"") -> 0 | F73: =SUMIFS(RAW!$C$2:$C$99999,RAW!$D$2:$D$99999,ReportProduct!$B73,RAW!$F$2:$F$99999,ReportProduct!$A$1) -> 0 | I73: =IF(SUMIFS(RAW!$B$2:$B$99999,RAW!$H$2:$H$99999,ReportProduct!$H73,RAW!$F$2:$F$99999,ReportProduct!$A$1)<>0,SUMIFS(RAW!$B$2:$B$99999,RAW!$H$2:$H$99999,ReportProduct!$H73,RAW!$F$2:$F$99999,ReportProduct!$A$1),"") ->  | L73: =IF(SUMIFS(RAW!$C$2:$C$99999,RAW!$H$2:$H$99999,ReportProduct!$K73,RAW!$F$2:$F$99999,ReportProduct!$A$1)<>0,SUMIFS(RAW!$C$2:$C$99999,RAW!$H$2:$H$99999,ReportProduct!$K73,RAW!$F$2:$F$99999,ReportProduct!$A$1),"") -> 
C74: =IFERROR(SUMIFS(RAW!$B$2:$B$99999,RAW!$D$2:$D$99999,ReportProduct!$B74,RAW!$F$2:$F$99999,ReportProduct!$A$1),"") -> 0 | F74: =SUMIFS(RAW!$C$2:$C$99999,RAW!$D$2:$D$99999,ReportProduct!$B74,RAW!$F$2:$F$99999,ReportProduct!$A$1) -> 0 | I74: =IF(SUMIFS(RAW!$B$2:$B$99999,RAW!$H$2:$H$99999,ReportProduct!$H74,RAW!$F$2:$F$99999,ReportProduct!$A$1)<>0,SUMIFS(RAW!$B$2:$B$99999,RAW!$H$2:$H$99999,ReportProduct!$H74,RAW!$F$2:$F$99999,ReportProduct!$A$1),"") ->  | L74: =IF(SUMIFS(RAW!$C$2:$C$99999,RAW!$H$2:$H$99999,ReportProduct!$K74,RAW!$F$2:$F$99999,ReportProduct!$A$1)<>0,SUMIFS(RAW!$C$2:$C$99999,RAW!$H$2:$H$99999,ReportProduct!$K74,RAW!$F$2:$F$99999,ReportProduct!$A$1),"") -> 
C75: =IFERROR(SUMIFS(RAW!$B$2:$B$99999,RAW!$D$2:$D$99999,ReportProduct!$B75,RAW!$F$2:$F$99999,ReportProduct!$A$1),"") -> 0 | F75: =SUMIFS(RAW!$C$2:$C$99999,RAW!$D$2:$D$99999,ReportProduct!$B75,RAW!$F$2:$F$99999,ReportProduct!$A$1) -> 0 | I75: =IF(SUMIFS(RAW!$B$2:$B$99999,RAW!$H$2:$H$99999,ReportProduct!$H75,RAW!$F$2:$F$99999,ReportProduct!$A$1)<>0,SUMIFS(RAW!$B$2:$B$99999,RAW!$H$2:$H$99999,ReportProduct!$H75,RAW!$F$2:$F$99999,ReportProduct!$A$1),"") ->  | L75: =IF(SUMIFS(RAW!$C$2:$C$99999,RAW!$H$2:$H$99999,ReportProduct!$K75,RAW!$F$2:$F$99999,ReportProduct!$A$1)<>0,SUMIFS(RAW!$C$2:$C$99999,RAW!$H$2:$H$99999,ReportProduct!$K75,RAW!$F$2:$F$99999,ReportProduct!$A$1),"") -> 
C76: =IFERROR(SUMIFS(RAW!$B$2:$B$99999,RAW!$D$2:$D$99999,ReportProduct!$B76,RAW!$F$2:$F$99999,ReportProduct!$A$1),"") -> 0 | F76: =SUMIFS(RAW!$C$2:$C$99999,RAW!$D$2:$D$99999,ReportProduct!$B76,RAW!$F$2:$F$99999,ReportProduct!$A$1) -> 0 | I76: =IF(SUMIFS(RAW!$B$2:$B$99999,RAW!$H$2:$H$99999,ReportProduct!$H76,RAW!$F$2:$F$99999,ReportProduct!$A$1)<>0,SUMIFS(RAW!$B$2:$B$99999,RAW!$H$2:$H$99999,ReportProduct!$H76,RAW!$F$2:$F$99999,ReportProduct!$A$1),"") ->  | L76: =IF(SUMIFS(RAW!$C$2:$C$99999,RAW!$H$2:$H$99999,ReportProduct!$K76,RAW!$F$2:$F$99999,ReportProduct!$A$1)<>0,SUMIFS(RAW!$C$2:$C$99999,RAW!$H$2:$H$99999,ReportProduct!$K76,RAW!$F$2:$F$99999,ReportProduct!$A$1),"") -> 
C77: =IFERROR(SUMIFS(RAW!$B$2:$B$99999,RAW!$D$2:$D$99999,ReportProduct!$B77,RAW!$F$2:$F$99999,ReportProduct!$A$1),"") -> 0 | F77: =SUMIFS(RAW!$C$2:$C$99999,RAW!$D$2:$D$99999,ReportProduct!$B77,RAW!$F$2:$F$99999,ReportProduct!$A$1) -> 0 | I77: =IF(SUMIFS(RAW!$B$2:$B$99999,RAW!$H$2:$H$99999,ReportProduct!$H77,RAW!$F$2:$F$99999,ReportProduct!$A$1)<>0,SUMIFS(RAW!$B$2:$B$99999,RAW!$H$2:$H$99999,ReportProduct!$H77,RAW!$F$2:$F$99999,ReportProduct!$A$1),"") ->  | L77: =IF(SUMIFS(RAW!$C$2:$C$99999,RAW!$H$2:$H$99999,ReportProduct!$K77,RAW!$F$2:$F$99999,ReportProduct!$A$1)<>0,SUMIFS(RAW!$C$2:$C$99999,RAW!$H$2:$H$99999,ReportProduct!$K77,RAW!$F$2:$F$99999,ReportProduct!$A$1),"") -> 
C78: =IFERROR(SUMIFS(RAW!$B$2:$B$99999,RAW!$D$2:$D$99999,ReportProduct!$B78,RAW!$F$2:$F$99999,ReportProduct!$A$1),"") -> 0 | F78: =SUMIFS(RAW!$C$2:$C$99999,RAW!$D$2:$D$99999,ReportProduct!$B78,RAW!$F$2:$F$99999,ReportProduct!$A$1) -> 0 | I78: =IF(SUMIFS(RAW!$B$2:$B$99999,RAW!$H$2:$H$99999,ReportProduct!$H78,RAW!$F$2:$F$99999,ReportProduct!$A$1)<>0,SUMIFS(RAW!$B$2:$B$99999,RAW!$H$2:$H$99999,ReportProduct!$H78,RAW!$F$2:$F$99999,ReportProduct!$A$1),"") ->  | L78: =IF(SUMIFS(RAW!$C$2:$C$99999,RAW!$H$2:$H$99999,ReportProduct!$K78,RAW!$F$2:$F$99999,ReportProduct!$A$1)<>0,SUMIFS(RAW!$C$2:$C$99999,RAW!$H$2:$H$99999,ReportProduct!$K78,RAW!$F$2:$F$99999,ReportProduct!$A$1),"") -> 
C79: =IFERROR(SUMIFS(RAW!$B$2:$B$99999,RAW!$D$2:$D$99999,ReportProduct!$B79,RAW!$F$2:$F$99999,ReportProduct!$A$1),"") -> 0 | F79: =SUMIFS(RAW!$C$2:$C$99999,RAW!$D$2:$D$99999,ReportProduct!$B79,RAW!$F$2:$F$99999,ReportProduct!$A$1) -> 0 | I79: =IF(SUMIFS(RAW!$B$2:$B$99999,RAW!$H$2:$H$99999,ReportProduct!$H79,RAW!$F$2:$F$99999,ReportProduct!$A$1)<>0,SUMIFS(RAW!$B$2:$B$99999,RAW!$H$2:$H$99999,ReportProduct!$H79,RAW!$F$2:$F$99999,ReportProduct!$A$1),"") ->  | L79: =IF(SUMIFS(RAW!$C$2:$C$99999,RAW!$H$2:$H$99999,ReportProduct!$K79,RAW!$F$2:$F$99999,ReportProduct!$A$1)<>0,SUMIFS(RAW!$C$2:$C$99999,RAW!$H$2:$H$99999,ReportProduct!$K79,RAW!$F$2:$F$99999,ReportProduct!$A$1),"") -> 
C80: =IFERROR(SUMIFS(RAW!$B$2:$B$99999,RAW!$D$2:$D$99999,ReportProduct!$B80,RAW!$F$2:$F$99999,ReportProduct!$A$1),"") -> 0 | F80: =SUMIFS(RAW!$C$2:$C$99999,RAW!$D$2:$D$99999,ReportProduct!$B80,RAW!$F$2:$F$99999,ReportProduct!$A$1) -> 0 | I80: =IF(SUMIFS(RAW!$B$2:$B$99999,RAW!$H$2:$H$99999,ReportProduct!$H80,RAW!$F$2:$F$99999,ReportProduct!$A$1)<>0,SUMIFS(RAW!$B$2:$B$99999,RAW!$H$2:$H$99999,ReportProduct!$H80,RAW!$F$2:$F$99999,ReportProduct!$A$1),"") ->  | L80: =IF(SUMIFS(RAW!$C$2:$C$99999,RAW!$H$2:$H$99999,ReportProduct!$K80,RAW!$F$2:$F$99999,ReportProduct!$A$1)<>0,SUMIFS(RAW!$C$2:$C$99999,RAW!$H$2:$H$99999,ReportProduct!$K80,RAW!$F$2:$F$99999,ReportProduct!$A$1),"") -> 
C81: =IFERROR(SUMIFS(RAW!$B$2:$B$99999,RAW!$D$2:$D$99999,ReportProduct!$B81,RAW!$F$2:$F$99999,ReportProduct!$A$1),"") -> 0 | F81: =SUMIFS(RAW!$C$2:$C$99999,RAW!$D$2:$D$99999,ReportProduct!$B81,RAW!$F$2:$F$99999,ReportProduct!$A$1) -> 0 | I81: =IF(SUMIFS(RAW!$B$2:$B$99999,RAW!$H$2:$H$99999,ReportProduct!$H81,RAW!$F$2:$F$99999,ReportProduct!$A$1)<>0,SUMIFS(RAW!$B$2:$B$99999,RAW!$H$2:$H$99999,ReportProduct!$H81,RAW!$F$2:$F$99999,ReportProduct!$A$1),"") ->  | L81: =IF(SUMIFS(RAW!$C$2:$C$99999,RAW!$H$2:$H$99999,ReportProduct!$K81,RAW!$F$2:$F$99999,ReportProduct!$A$1)<>0,SUMIFS(RAW!$C$2:$C$99999,RAW!$H$2:$H$99999,ReportProduct!$K81,RAW!$F$2:$F$99999,ReportProduct!$A$1),"") -> 
C82: =IFERROR(SUMIFS(RAW!$B$2:$B$99999,RAW!$D$2:$D$99999,ReportProduct!$B82,RAW!$F$2:$F$99999,ReportProduct!$A$1),"") -> 0 | F82: =SUMIFS(RAW!$C$2:$C$99999,RAW!$D$2:$D$99999,ReportProduct!$B82,RAW!$F$2:$F$99999,ReportProduct!$A$1) -> 0 | I82: =IF(SUMIFS(RAW!$B$2:$B$99999,RAW!$H$2:$H$99999,ReportProduct!$H82,RAW!$F$2:$F$99999,ReportProduct!$A$1)<>0,SUMIFS(RAW!$B$2:$B$99999,RAW!$H$2:$H$99999,ReportProduct!$H82,RAW!$F$2:$F$99999,ReportProduct!$A$1),"") ->  | L82: =IF(SUMIFS(RAW!$C$2:$C$99999,RAW!$H$2:$H$99999,ReportProduct!$K82,RAW!$F$2:$F$99999,ReportProduct!$A$1)<>0,SUMIFS(RAW!$C$2:$C$99999,RAW!$H$2:$H$99999,ReportProduct!$K82,RAW!$F$2:$F$99999,ReportProduct!$A$1),"") -> 
C83: =IFERROR(SUMIFS(RAW!$B$2:$B$99999,RAW!$D$2:$D$99999,ReportProduct!$B83,RAW!$F$2:$F$99999,ReportProduct!$A$1),"") -> 0 | F83: =SUMIFS(RAW!$C$2:$C$99999,RAW!$D$2:$D$99999,ReportProduct!$B83,RAW!$F$2:$F$99999,ReportProduct!$A$1) -> 0 | I83: =IF(SUMIFS(RAW!$B$2:$B$99999,RAW!$H$2:$H$99999,ReportProduct!$H83,RAW!$F$2:$F$99999,ReportProduct!$A$1)<>0,SUMIFS(RAW!$B$2:$B$99999,RAW!$H$2:$H$99999,ReportProduct!$H83,RAW!$F$2:$F$99999,ReportProduct!$A$1),"") ->  | L83: =IF(SUMIFS(RAW!$C$2:$C$99999,RAW!$H$2:$H$99999,ReportProduct!$K83,RAW!$F$2:$F$99999,ReportProduct!$A$1)<>0,SUMIFS(RAW!$C$2:$C$99999,RAW!$H$2:$H$99999,ReportProduct!$K83,RAW!$F$2:$F$99999,ReportProduct!$A$1),"") -> 
C84: =IFERROR(SUMIFS(RAW!$B$2:$B$99999,RAW!$D$2:$D$99999,ReportProduct!$B84,RAW!$F$2:$F$99999,ReportProduct!$A$1),"") -> 0 | F84: =SUMIFS(RAW!$C$2:$C$99999,RAW!$D$2:$D$99999,ReportProduct!$B84,RAW!$F$2:$F$99999,ReportProduct!$A$1) -> 0 | I84: =IF(SUMIFS(RAW!$B$2:$B$99999,RAW!$H$2:$H$99999,ReportProduct!$H84,RAW!$F$2:$F$99999,ReportProduct!$A$1)<>0,SUMIFS(RAW!$B$2:$B$99999,RAW!$H$2:$H$99999,ReportProduct!$H84,RAW!$F$2:$F$99999,ReportProduct!$A$1),"") ->  | L84: =IF(SUMIFS(RAW!$C$2:$C$99999,RAW!$H$2:$H$99999,ReportProduct!$K84,RAW!$F$2:$F$99999,ReportProduct!$A$1)<>0,SUMIFS(RAW!$C$2:$C$99999,RAW!$H$2:$H$99999,ReportProduct!$K84,RAW!$F$2:$F$99999,ReportProduct!$A$1),"") -> 
C85: =IFERROR(SUMIFS(RAW!$B$2:$B$99999,RAW!$D$2:$D$99999,ReportProduct!$B85,RAW!$F$2:$F$99999,ReportProduct!$A$1),"") -> 0 | F85: =SUMIFS(RAW!$C$2:$C$99999,RAW!$D$2:$D$99999,ReportProduct!$B85,RAW!$F$2:$F$99999,ReportProduct!$A$1) -> 0 | I85: =IF(SUMIFS(RAW!$B$2:$B$99999,RAW!$H$2:$H$99999,ReportProduct!$H85,RAW!$F$2:$F$99999,ReportProduct!$A$1)<>0,SUMIFS(RAW!$B$2:$B$99999,RAW!$H$2:$H$99999,ReportProduct!$H85,RAW!$F$2:$F$99999,ReportProduct!$A$1),"") ->  | L85: =IF(SUMIFS(RAW!$C$2:$C$99999,RAW!$H$2:$H$99999,ReportProduct!$K85,RAW!$F$2:$F$99999,ReportProduct!$A$1)<>0,SUMIFS(RAW!$C$2:$C$99999,RAW!$H$2:$H$99999,ReportProduct!$K85,RAW!$F$2:$F$99999,ReportProduct!$A$1),"") -> 
C86: =IFERROR(SUMIFS(RAW!$B$2:$B$99999,RAW!$D$2:$D$99999,ReportProduct!$B86,RAW!$F$2:$F$99999,ReportProduct!$A$1),"") -> 0 | F86: =SUMIFS(RAW!$C$2:$C$99999,RAW!$D$2:$D$99999,ReportProduct!$B86,RAW!$F$2:$F$99999,ReportProduct!$A$1) -> 0 | I86: =IF(SUMIFS(RAW!$B$2:$B$99999,RAW!$H$2:$H$99999,ReportProduct!$H86,RAW!$F$2:$F$99999,ReportProduct!$A$1)<>0,SUMIFS(RAW!$B$2:$B$99999,RAW!$H$2:$H$99999,ReportProduct!$H86,RAW!$F$2:$F$99999,ReportProduct!$A$1),"") ->  | L86: =IF(SUMIFS(RAW!$C$2:$C$99999,RAW!$H$2:$H$99999,ReportProduct!$K86,RAW!$F$2:$F$99999,ReportProduct!$A$1)<>0,SUMIFS(RAW!$C$2:$C$99999,RAW!$H$2:$H$99999,ReportProduct!$K86,RAW!$F$2:$F$99999,ReportProduct!$A$1),"") -> 
C87: =IFERROR(SUMIFS(RAW!$B$2:$B$99999,RAW!$D$2:$D$99999,ReportProduct!$B87,RAW!$F$2:$F$99999,ReportProduct!$A$1),"") -> 0 | F87: =SUMIFS(RAW!$C$2:$C$99999,RAW!$D$2:$D$99999,ReportProduct!$B87,RAW!$F$2:$F$99999,ReportProduct!$A$1) -> 0 | I87: =IF(SUMIFS(RAW!$B$2:$B$99999,RAW!$H$2:$H$99999,ReportProduct!$H87,RAW!$F$2:$F$99999,ReportProduct!$A$1)<>0,SUMIFS(RAW!$B$2:$B$99999,RAW!$H$2:$H$99999,ReportProduct!$H87,RAW!$F$2:$F$99999,ReportProduct!$A$1),"") ->  | L87: =IF(SUMIFS(RAW!$C$2:$C$99999,RAW!$H$2:$H$99999,ReportProduct!$K87,RAW!$F$2:$F$99999,ReportProduct!$A$1)<>0,SUMIFS(RAW!$C$2:$C$99999,RAW!$H$2:$H$99999,ReportProduct!$K87,RAW!$F$2:$F$99999,ReportProduct!$A$1),"") -> 
C88: =IFERROR(SUMIFS(RAW!$B$2:$B$99999,RAW!$D$2:$D$99999,ReportProduct!$B88,RAW!$F$2:$F$99999,ReportProduct!$A$1),"") -> 0 | F88: =SUMIFS(RAW!$C$2:$C$99999,RAW!$D$2:$D$99999,ReportProduct!$B88,RAW!$F$2:$F$99999,ReportProduct!$A$1) -> 0 | I88: =IF(SUMIFS(RAW!$B$2:$B$99999,RAW!$H$2:$H$99999,ReportProduct!$H88,RAW!$F$2:$F$99999,ReportProduct!$A$1)<>0,SUMIFS(RAW!$B$2:$B$99999,RAW!$H$2:$H$99999,ReportProduct!$H88,RAW!$F$2:$F$99999,ReportProduct!$A$1),"") ->  | L88: =IF(SUMIFS(RAW!$C$2:$C$99999,RAW!$H$2:$H$99999,ReportProduct!$K88,RAW!$F$2:$F$99999,ReportProduct!$A$1)<>0,SUMIFS(RAW!$C$2:$C$99999,RAW!$H$2:$H$99999,ReportProduct!$K88,RAW!$F$2:$F$99999,ReportProduct!$A$1),"") -> 
C89: =IFERROR(SUMIFS(RAW!$B$2:$B$99999,RAW!$D$2:$D$99999,ReportProduct!$B89,RAW!$F$2:$F$99999,ReportProduct!$A$1),"") -> 0 | F89: =SUMIFS(RAW!$C$2:$C$99999,RAW!$D$2:$D$99999,ReportProduct!$B89,RAW!$F$2:$F$99999,ReportProduct!$A$1) -> 0 | I89: =IF(SUMIFS(RAW!$B$2:$B$99999,RAW!$H$2:$H$99999,ReportProduct!$H89,RAW!$F$2:$F$99999,ReportProduct!$A$1)<>0,SUMIFS(RAW!$B$2:$B$99999,RAW!$H$2:$H$99999,ReportProduct!$H89,RAW!$F$2:$F$99999,ReportProduct!$A$1),"") ->  | L89: =IF(SUMIFS(RAW!$C$2:$C$99999,RAW!$H$2:$H$99999,ReportProduct!$K89,RAW!$F$2:$F$99999,ReportProduct!$A$1)<>0,SUMIFS(RAW!$C$2:$C$99999,RAW!$H$2:$H$99999,ReportProduct!$K89,RAW!$F$2:$F$99999,ReportProduct!$A$1),"") -> 
C90: =IFERROR(SUMIFS(RAW!$B$2:$B$99999,RAW!$D$2:$D$99999,ReportProduct!$B90,RAW!$F$2:$F$99999,ReportProduct!$A$1),"") -> 0 | F90: =SUMIFS(RAW!$C$2:$C$99999,RAW!$D$2:$D$99999,ReportProduct!$B90,RAW!$F$2:$F$99999,ReportProduct!$A$1) -> 0 | I90: =IF(SUMIFS(RAW!$B$2:$B$99999,RAW!$H$2:$H$99999,ReportProduct!$H90,RAW!$F$2:$F$99999,ReportProduct!$A$1)<>0,SUMIFS(RAW!$B$2:$B$99999,RAW!$H$2:$H$99999,ReportProduct!$H90,RAW!$F$2:$F$99999,ReportProduct!$A$1),"") ->  | L90: =IF(SUMIFS(RAW!$C$2:$C$99999,RAW!$H$2:$H$99999,ReportProduct!$K90,RAW!$F$2:$F$99999,ReportProduct!$A$1)<>0,SUMIFS(RAW!$C$2:$C$99999,RAW!$H$2:$H$99999,ReportProduct!$K90,RAW!$F$2:$F$99999,ReportProduct!$A$1),"") -> 
C91: =IFERROR(SUMIFS(RAW!$B$2:$B$99999,RAW!$D$2:$D$99999,ReportProduct!$B91,RAW!$F$2:$F$99999,ReportProduct!$A$1),"") -> 0 | F91: =SUMIFS(RAW!$C$2:$C$99999,RAW!$D$2:$D$99999,ReportProduct!$B91,RAW!$F$2:$F$99999,ReportProduct!$A$1) -> 0 | I91: =IF(SUMIFS(RAW!$B$2:$B$99999,RAW!$H$2:$H$99999,ReportProduct!$H91,RAW!$F$2:$F$99999,ReportProduct!$A$1)<>0,SUMIFS(RAW!$B$2:$B$99999,RAW!$H$2:$H$99999,ReportProduct!$H91,RAW!$F$2:$F$99999,ReportProduct!$A$1),"") ->  | L91: =IF(SUMIFS(RAW!$C$2:$C$99999,RAW!$H$2:$H$99999,ReportProduct!$K91,RAW!$F$2:$F$99999,ReportProduct!$A$1)<>0,SUMIFS(RAW!$C$2:$C$99999,RAW!$H$2:$H$99999,ReportProduct!$K91,RAW!$F$2:$F$99999,ReportProduct!$A$1),"") -> 
C92: =IFERROR(SUMIFS(RAW!$B$2:$B$99999,RAW!$D$2:$D$99999,ReportProduct!$B92,RAW!$F$2:$F$99999,ReportProduct!$A$1),"") -> 0 | F92: =SUMIFS(RAW!$C$2:$C$99999,RAW!$D$2:$D$99999,ReportProduct!$B92,RAW!$F$2:$F$99999,ReportProduct!$A$1) -> 0 | I92: =IF(SUMIFS(RAW!$B$2:$B$99999,RAW!$H$2:$H$99999,ReportProduct!$H92,RAW!$F$2:$F$99999,ReportProduct!$A$1)<>0,SUMIFS(RAW!$B$2:$B$99999,RAW!$H$2:$H$99999,ReportProduct!$H92,RAW!$F$2:$F$99999,ReportProduct!$A$1),"") ->  | L92: =IF(SUMIFS(RAW!$C$2:$C$99999,RAW!$H$2:$H$99999,ReportProduct!$K92,RAW!$F$2:$F$99999,ReportProduct!$A$1)<>0,SUMIFS(RAW!$C$2:$C$99999,RAW!$H$2:$H$99999,ReportProduct!$K92,RAW!$F$2:$F$99999,ReportProduct!$A$1),"") -> 
C93: =IFERROR(SUMIFS(RAW!$B$2:$B$99999,RAW!$D$2:$D$99999,ReportProduct!$B93,RAW!$F$2:$F$99999,ReportProduct!$A$1),"") -> 0 | F93: =SUMIFS(RAW!$C$2:$C$99999,RAW!$D$2:$D$99999,ReportProduct!$B93,RAW!$F$2:$F$99999,ReportProduct!$A$1) -> 0 | I93: =IF(SUMIFS(RAW!$B$2:$B$99999,RAW!$H$2:$H$99999,ReportProduct!$H93,RAW!$F$2:$F$99999,ReportProduct!$A$1)<>0,SUMIFS(RAW!$B$2:$B$99999,RAW!$H$2:$H$99999,ReportProduct!$H93,RAW!$F$2:$F$99999,ReportProduct!$A$1),"") ->  | L93: =IF(SUMIFS(RAW!$C$2:$C$99999,RAW!$H$2:$H$99999,ReportProduct!$K93,RAW!$F$2:$F$99999,ReportProduct!$A$1)<>0,SUMIFS(RAW!$C$2:$C$99999,RAW!$H$2:$H$99999,ReportProduct!$K93,RAW!$F$2:$F$99999,ReportProduct!$A$1),"") -> 
C94: =IFERROR(SUMIFS(RAW!$B$2:$B$99999,RAW!$D$2:$D$99999,ReportProduct!$B94,RAW!$F$2:$F$99999,ReportProduct!$A$1),"") -> 0 | F94: =SUMIFS(RAW!$C$2:$C$99999,RAW!$D$2:$D$99999,ReportProduct!$B94,RAW!$F$2:$F$99999,ReportProduct!$A$1) -> 0 | I94: =IF(SUMIFS(RAW!$B$2:$B$99999,RAW!$H$2:$H$99999,ReportProduct!$H94,RAW!$F$2:$F$99999,ReportProduct!$A$1)<>0,SUMIFS(RAW!$B$2:$B$99999,RAW!$H$2:$H$99999,ReportProduct!$H94,RAW!$F$2:$F$99999,ReportProduct!$A$1),"") ->  | L94: =IF(SUMIFS(RAW!$C$2:$C$99999,RAW!$H$2:$H$99999,ReportProduct!$K94,RAW!$F$2:$F$99999,ReportProduct!$A$1)<>0,SUMIFS(RAW!$C$2:$C$99999,RAW!$H$2:$H$99999,ReportProduct!$K94,RAW!$F$2:$F$99999,ReportProduct!$A$1),"") -> 
C95: =IFERROR(SUMIFS(RAW!$B$2:$B$99999,RAW!$D$2:$D$99999,ReportProduct!$B95,RAW!$F$2:$F$99999,ReportProduct!$A$1),"") -> 0 | F95: =SUMIFS(RAW!$C$2:$C$99999,RAW!$D$2:$D$99999,ReportProduct!$B95,RAW!$F$2:$F$99999,ReportProduct!$A$1) -> 0 | I95: =IF(SUMIFS(RAW!$B$2:$B$99999,RAW!$H$2:$H$99999,ReportProduct!$H95,RAW!$F$2:$F$99999,ReportProduct!$A$1)<>0,SUMIFS(RAW!$B$2:$B$99999,RAW!$H$2:$H$99999,ReportProduct!$H95,RAW!$F$2:$F$99999,ReportProduct!$A$1),"") ->  | L95: =IF(SUMIFS(RAW!$C$2:$C$99999,RAW!$H$2:$H$99999,ReportProduct!$K95,RAW!$F$2:$F$99999,ReportProduct!$A$1)<>0,SUMIFS(RAW!$C$2:$C$99999,RAW!$H$2:$H$99999,ReportProduct!$K95,RAW!$F$2:$F$99999,ReportProduct!$A$1),"") -> 
C96: =IFERROR(SUMIFS(RAW!$B$2:$B$99999,RAW!$D$2:$D$99999,ReportProduct!$B96,RAW!$F$2:$F$99999,ReportProduct!$A$1),"") -> 0 | F96: =SUMIFS(RAW!$C$2:$C$99999,RAW!$D$2:$D$99999,ReportProduct!$B96,RAW!$F$2:$F$99999,ReportProduct!$A$1) -> 0 | I96: =IF(SUMIFS(RAW!$B$2:$B$99999,RAW!$H$2:$H$99999,ReportProduct!$H96,RAW!$F$2:$F$99999,ReportProduct!$A$1)<>0,SUMIFS(RAW!$B$2:$B$99999,RAW!$H$2:$H$99999,ReportProduct!$H96,RAW!$F$2:$F$99999,ReportProduct!$A$1),"") ->  | L96: =IF(SUMIFS(RAW!$C$2:$C$99999,RAW!$H$2:$H$99999,ReportProduct!$K96,RAW!$F$2:$F$99999,ReportProduct!$A$1)<>0,SUMIFS(RAW!$C$2:$C$99999,RAW!$H$2:$H$99999,ReportProduct!$K96,RAW!$F$2:$F$99999,ReportProduct!$A$1),"") -> 
C97: =IFERROR(SUMIFS(RAW!$B$2:$B$99999,RAW!$D$2:$D$99999,ReportProduct!$B97,RAW!$F$2:$F$99999,ReportProduct!$A$1),"") -> 0 | F97: =SUMIFS(RAW!$C$2:$C$99999,RAW!$D$2:$D$99999,ReportProduct!$B97,RAW!$F$2:$F$99999,ReportProduct!$A$1) -> 0 | I97: =IF(SUMIFS(RAW!$B$2:$B$99999,RAW!$H$2:$H$99999,ReportProduct!$H97,RAW!$F$2:$F$99999,ReportProduct!$A$1)<>0,SUMIFS(RAW!$B$2:$B$99999,RAW!$H$2:$H$99999,ReportProduct!$H97,RAW!$F$2:$F$99999,ReportProduct!$A$1),"") ->  | L97: =IF(SUMIFS(RAW!$C$2:$C$99999,RAW!$H$2:$H$99999,ReportProduct!$K97,RAW!$F$2:$F$99999,ReportProduct!$A$1)<>0,SUMIFS(RAW!$C$2:$C$99999,RAW!$H$2:$H$99999,ReportProduct!$K97,RAW!$F$2:$F$99999,ReportProduct!$A$1),"") -> 
C98: =IFERROR(SUMIFS(RAW!$B$2:$B$99999,RAW!$D$2:$D$99999,ReportProduct!$B98,RAW!$F$2:$F$99999,ReportProduct!$A$1),"") -> 0 | F98: =SUMIFS(RAW!$C$2:$C$99999,RAW!$D$2:$D$99999,ReportProduct!$B98,RAW!$F$2:$F$99999,ReportProduct!$A$1) -> 0 | I98: =IF(SUMIFS(RAW!$B$2:$B$99999,RAW!$H$2:$H$99999,ReportProduct!$H98,RAW!$F$2:$F$99999,ReportProduct!$A$1)<>0,SUMIFS(RAW!$B$2:$B$99999,RAW!$H$2:$H$99999,ReportProduct!$H98,RAW!$F$2:$F$99999,ReportProduct!$A$1),"") ->  | L98: =IF(SUMIFS(RAW!$C$2:$C$99999,RAW!$H$2:$H$99999,ReportProduct!$K98,RAW!$F$2:$F$99999,ReportProduct!$A$1)<>0,SUMIFS(RAW!$C$2:$C$99999,RAW!$H$2:$H$99999,ReportProduct!$K98,RAW!$F$2:$F$99999,ReportProduct!$A$1),"") -> 
C99: =IFERROR(SUMIFS(RAW!$B$2:$B$99999,RAW!$D$2:$D$99999,ReportProduct!$B99,RAW!$F$2:$F$99999,ReportProduct!$A$1),"") -> 0 | F99: =SUMIFS(RAW!$C$2:$C$99999,RAW!$D$2:$D$99999,ReportProduct!$B99,RAW!$F$2:$F$99999,ReportProduct!$A$1) -> 0 | I99: =IF(SUMIFS(RAW!$B$2:$B$99999,RAW!$H$2:$H$99999,ReportProduct!$H99,RAW!$F$2:$F$99999,ReportProduct!$A$1)<>0,SUMIFS(RAW!$B$2:$B$99999,RAW!$H$2:$H$99999,ReportProduct!$H99,RAW!$F$2:$F$99999,ReportProduct!$A$1),"") ->  | L99: =IF(SUMIFS(RAW!$C$2:$C$99999,RAW!$H$2:$H$99999,ReportProduct!$K99,RAW!$F$2:$F$99999,ReportProduct!$A$1)<>0,SUMIFS(RAW!$C$2:$C$99999,RAW!$H$2:$H$99999,ReportProduct!$K99,RAW!$F$2:$F$99999,ReportProduct!$A$1),"") -> 
C100: =IFERROR(SUMIFS(RAW!$B$2:$B$99999,RAW!$D$2:$D$99999,ReportProduct!$B100,RAW!$F$2:$F$99999,ReportProduct!$A$1),"") -> 0 | F100: =SUMIFS(RAW!$C$2:$C$99999,RAW!$D$2:$D$99999,ReportProduct!$B100,RAW!$F$2:$F$99999,ReportProduct!$A$1) -> 0 | I100: =IF(SUMIFS(RAW!$B$2:$B$99999,RAW!$H$2:$H$99999,ReportProduct!$H100,RAW!$F$2:$F$99999,ReportProduct!$A$1)<>0,SUMIFS(RAW!$B$2:$B$99999,RAW!$H$2:$H$99999,ReportProduct!$H100,RAW!$F$2:$F$99999,ReportProduct!$A$1),"") ->  | L100: =IF(SUMIFS(RAW!$C$2:$C$99999,RAW!$H$2:$H$99999,ReportProduct!$K100,RAW!$F$2:$F$99999,ReportProduct!$A$1)<>0,SUMIFS(RAW!$C$2:$C$99999,RAW!$H$2:$H$99999,ReportProduct!$K100,RAW!$F$2:$F$99999,ReportProduct!$A$1),"") -> 
C101: =IFERROR(SUMIFS(RAW!$B$2:$B$99999,RAW!$D$2:$D$99999,ReportProduct!$B101,RAW!$F$2:$F$99999,ReportProduct!$A$1),"") -> 0 | F101: =SUMIFS(RAW!$C$2:$C$99999,RAW!$D$2:$D$99999,ReportProduct!$B101,RAW!$F$2:$F$99999,ReportProduct!$A$1) -> 0 | I101: =IF(SUMIFS(RAW!$B$2:$B$99999,RAW!$H$2:$H$99999,ReportProduct!$H101,RAW!$F$2:$F$99999,ReportProduct!$A$1)<>0,SUMIFS(RAW!$B$2:$B$99999,RAW!$H$2:$H$99999,ReportProduct!$H101,RAW!$F$2:$F$99999,ReportProduct!$A$1),"") ->  | L101: =IF(SUMIFS(RAW!$C$2:$C$99999,RAW!$H$2:$H$99999,ReportProduct!$K101,RAW!$F$2:$F$99999,ReportProduct!$A$1)<>0,SUMIFS(RAW!$C$2:$C$99999,RAW!$H$2:$H$99999,ReportProduct!$K101,RAW!$F$2:$F$99999,ReportProduct!$A$1),"") -> 
